Workbook

Sheet 石鼓
A1: 2025年五金材料及工器具暂定采购清单
A2: 序号 | B2: 物资重要程度 | C2: 物资名称 | D2: 物资类别 | E2: 推荐品牌 | F2: 规格型号 | G2: 暂定数量 | H2: 单位 | I2: 暂定含税单价 | J2: 暂定含税总价 | K2: 备注
A3: 1 | B3: ▲ | C3: 304不锈钢长柄球阀 | D3: 五金材料 | E3: 埃美柯/一靓/海胜 | F3: DN100,PN16 | G3: 4 | H3: 只 | I3: 1199.44 | J3: =I3*G3 -> 4797.76
A4: 2 | B4: ▲ | C4: 304不锈钢长柄球阀 | D4: 五金材料 | E4: 埃美柯/一靓/海胜 | F4: DN15,PN16 | G4: 20 | H4: 只 | I4: 60.63 | J4: 1212.6
A5: 3 | B5: ▲ | C5: 304不锈钢长柄球阀 | D5: 五金材料 | E5: 埃美柯/一靓/海胜 | F5: DN20,PN16 | G5: 20 | H5: 只 | I5: 80.84 | J5: 1616.8
A6: 4 | B6: ▲ | C6: 304不锈钢长柄球阀 | D6: 五金材料 | E6: 埃美柯/一靓/海胜 | F6: DN25,PN16 | G6: 20 | H6: 只 | I6: 101.05 | J6: 2021
A7: 5 | B7: ▲ | C7: 304不锈钢长柄球阀 | D7: 五金材料 | E7: 埃美柯/一靓/海胜 | F7: DN32,PN16 | G7: 10 | H7: 只 | I7: 135.41 | J7: 1354.1
A8: 6 | B8: ▲ | C8: 304不锈钢长柄球阀 | D8: 五金材料 | E8: 埃美柯/一靓/海胜 | F8: DN40,PN16 | G8: 8 | H8: 只 | I8: 175.83 | J8: 1406.64
A9: 7 | B9: ▲ | C9: 304不锈钢长柄球阀 | D9: 五金材料 | E9: 埃美柯/一靓/海胜 | F9: DN50,PN16 | G9: 8 | H9: 只 | I9: 292.03 | J9: 2336.24
A10: 8 | B10: ▲ | C10: 304不锈钢长柄球阀 | D10: 五金材料 | E10: 埃美柯/一靓/海胜 | F10: DN65,PN16 | G10: 5 | H10: 只 | I10: 440.57 | J10: 2202.85
A11: 9 | B11: ▲ | C11: 304不锈钢长柄球阀 | D11: 五金材料 | E11: 埃美柯/一靓/海胜 | F11: DN80,PN16 | G11: 5 | H11: 只 | I11: 811.42 | J11: 4057.1
A12: 10 | B12: ▲ | C12: HDPE 45°弯头 | D12: 五金材料 | E12: 联塑/日丰/南亚 | F12: dn110（公称外径）,PN16 | G12: 4 | H12: 只 | I12: 36.38 | J12: 145.52
A13: 11 | B13: ▲ | C13: HDPE 45°弯头 | D13: 五金材料 | E13: 联塑/日丰/南亚 | F13: dn125（公称外径）,PN16 | G13: 3 | H13: 只 | I13: 75.79 | J13: 227.37
A14: 12 | B14: ▲ | C14: HDPE 45°弯头 | D14: 五金材料 | E14: 联塑/日丰/南亚 | F14: dn140（公称外径）,PN16 | G14: 3 | H14: 只 | I14: 94.99 | J14: 284.97
A15: 13 | B15: ▲ | C15: HDPE 45°弯头 | D15: 五金材料 | E15: 联塑/日丰/南亚 | F15: dn160（公称外径）,PN16 | G15: 3 | H15: 只 | I15: 186.94 | J15: 560.82
A16: 14 | B16: ▲ | C16: HDPE 45°弯头 | D16: 五金材料 | E16: 联塑/日丰/南亚 | F16: dn20（公称外径）,PN16 | G16: 7 | H16: 只 | I16: 1.02 | J16: 7.14
A17: 15 | B17: ▲ | C17: HDPE 45°弯头 | D17: 五金材料 | E17: 联塑/日丰/南亚 | F17: dn200（公称外径）,PN16 | G17: 3 | H17: 只 | I17: 303.15 | J17: 909.45
A18: 16 | B18: ▲ | C18: HDPE 45°弯头 | D18: 五金材料 | E18: 联塑/日丰/南亚 | F18: dn225（公称外径）,PN16 | G18: 3 | H18: 只 | I18: 366.81 | J18: 1100.43
A19: 17 | B19: ▲ | C19: HDPE 45°弯头 | D19: 五金材料 | E19: 联塑/日丰/南亚 | F19: dn25（公称外径）,PN16 | G19: 7 | H19: 只 | I19: 1.02 | J19: 7.14
A20: 18 | B20: ▲ | C20: HDPE 45°弯头 | D20: 五金材料 | E20: 联塑/日丰/南亚 | F20: dn250（公称外径）,PN16 | G20: 3 | H20: 只 | I20: 478.97 | J20: 1436.91
A21: 19 | B21: ▲ | C21: HDPE 45°弯头 | D21: 五金材料 | E21: 联塑/日丰/南亚 | F21: dn32（公称外径）,PN16 | G21: 7 | H21: 只 | I21: 2.03 | J21: 14.21
A22: 20 | B22: ▲ | C22: HDPE 45°弯头 | D22: 五金材料 | E22: 联塑/日丰/南亚 | F22: dn40（公称外径）,PN16 | G22: 7 | H22: 只 | I22: 3.03 | J22: 21.21
A23: 21 | B23: ▲ | C23: HDPE 45°弯头 | D23: 五金材料 | E23: 联塑/日丰/南亚 | F23: dn50（公称外径）,PN16 | G23: 7 | H23: 只 | I23: 5.05 | J23: 35.35
A24: 22 | B24: ▲ | C24: HDPE 45°弯头 | D24: 五金材料 | E24: 联塑/日丰/南亚 | F24: dn63（公称外径）,PN16 | G24: 4 | H24: 只 | I24: 8.09 | J24: 32.36
A25: 23 | B25: ▲ | C25: HDPE 45°弯头 | D25: 五金材料 | E25: 联塑/日丰/南亚 | F25: dn75（公称外径）,PN16 | G25: 4 | H25: 只 | I25: 17.18 | J25: 68.72
A26: 24 | B26: ▲ | C26: HDPE 45°弯头 | D26: 五金材料 | E26: 联塑/日丰/南亚 | F26: dn90（公称外径）,PN16 | G26: 4 | H26: 只 | I26: 19.2 | J26: 76.8
A27: 25 | B27: ▲ | C27: HDPE 90°弯头 | D27: 五金材料 | E27: 联塑/日丰/南亚 | F27: dn110（公称外径）,PN16 | G27: 7 | H27: 只 | I27: 50.53 | J27: 353.71
A28: 26 | B28: ▲ | C28: HDPE 90°弯头 | D28: 五金材料 | E28: 联塑/日丰/南亚 | F28: dn125（公称外径）,PN16 | G28: 4 | H28: 只 | I28: 118.23 | J28: 472.92
A29: 27 | B29: ▲ | C29: HDPE 90°弯头 | D29: 五金材料 | E29: 联塑/日丰/南亚 | F29: dn140（公称外径）,PN16 | G29: 4 | H29: 只 | I29: 154.61 | J29: 618.44
A30: 28 | B30: ▲ | C30: HDPE 90°弯头 | D30: 五金材料 | E30: 联塑/日丰/南亚 | F30: dn160（公称外径）,PN16 | G30: 7 | H30: 只 | I30: 195.03 | J30: 1365.21
A31: 29 | B31: ▲ | C31: HDPE 90°弯头 | D31: 五金材料 | E31: 联塑/日丰/南亚 | F31: dn20（公称外径）,PN16 | G31: 19 | H31: 只 | I31: 1.02 | J31: 19.38
A32: 30 | B32: ▲ | C32: HDPE 90°弯头 | D32: 五金材料 | E32: 联塑/日丰/南亚 | F32: dn200（公称外径）,PN16 | G32: 7 | H32: 只 | I32: 318.3 | J32: 2228.1
A33: 31 | B33: ▲ | C33: HDPE 90°弯头 | D33: 五金材料 | E33: 联塑/日丰/南亚 | F33: dn225（公称外径）,PN16 | G33: 4 | H33: 只 | I33: 574.96 | J33: 2299.84
A34: 32 | B34: ▲ | C34: HDPE 90°弯头 | D34: 五金材料 | E34: 联塑/日丰/南亚 | F34: dn25（公称外径）,PN16 | G34: 19 | H34: 只 | I34: 2.03 | J34: 38.57
A35: 33 | B35: ▲ | C35: HDPE 90°弯头 | D35: 五金材料 | E35: 联塑/日丰/南亚 | F35: dn250（公称外径）,PN16 | G35: 4 | H35: 只 | I35: 721.48 | J35: 2885.92
A36: 34 | B36: ▲ | C36: HDPE 90°弯头 | D36: 五金材料 | E36: 联塑/日丰/南亚 | F36: dn32（公称外径）,PN16 | G36: 19 | H36: 只 | I36: 3.03 | J36: 57.57
A37: 35 | B37: ▲ | C37: HDPE 90°弯头 | D37: 五金材料 | E37: 联塑/日丰/南亚 | F37: dn40（公称外径）,PN16 | G37: 19 | H37: 只 | I37: 5.05 | J37: 95.95
A38: 36 | B38: ▲ | C38: HDPE 90°弯头 | D38: 五金材料 | E38: 联塑/日丰/南亚 | F38: dn50（公称外径）,PN16 | G38: 19 | H38: 只 | I38: 9.1 | J38: 172.9
A39: 37 | B39: ▲ | C39: HDPE 90°弯头 | D39: 五金材料 | E39: 联塑/日丰/南亚 | F39: dn63（公称外径）,PN16 | G39: 19 | H39: 只 | I39: 12.13 | J39: 230.47
A40: 38 | B40: ▲ | C40: HDPE 90°弯头 | D40: 五金材料 | E40: 联塑/日丰/南亚 | F40: dn75（公称外径）,PN16 | G40: 7 | H40: 只 | I40: 19.2 | J40: 134.4
A41: 39 | B41: ▲ | C41: HDPE 90°弯头 | D41: 五金材料 | E41: 联塑/日丰/南亚 | F41: dn90（公称外径）,PN16 | G41: 7 | H41: 只 | I41: 31.33 | J41: 219.31
A42: 40 | B42: ▲ | C42: HDPE带法兰接头 | D42: 五金材料 | E42: 联塑/日丰/南亚 | F42: dn110（公称外径）,PN16 | G42: 7 | H42: 只 | I42: 150.56 | J42: 1053.92
A43: 41 | B43: ▲ | C43: HDPE带法兰接头 | D43: 五金材料 | E43: 联塑/日丰/南亚 | F43: dn125（公称外径）,PN16 | G43: 5 | H43: 只 | I43: 165.72 | J43: 828.6
A44: 42 | B44: ▲ | C44: HDPE带法兰接头 | D44: 五金材料 | E44: 联塑/日丰/南亚 | F44: dn140（公称外径）,PN16 | G44: 5 | H44: 只 | I44: 193 | J44: 965
A45: 43 | B45: ▲ | C45: HDPE带法兰接头 | D45: 五金材料 | E45: 联塑/日丰/南亚 | F45: dn160（公称外径）,PN16 | G45: 5 | H45: 只 | I45: 263.74 | J45: 1318.7
A46: 44 | B46: ▲ | C46: HDPE带法兰接头 | D46: 五金材料 | E46: 联塑/日丰/南亚 | F46: dn200（公称外径）,PN16 | G46: 5 | H46: 只 | I46: 404.19 | J46: 2020.95
A47: 45 | B47: ▲ | C47: HDPE带法兰接头 | D47: 五金材料 | E47: 联塑/日丰/南亚 | F47: dn225（公称外径）,PN16 | G47: 5 | H47: 只 | I47: 419.35 | J47: 2096.75
A48: 46 | B48: ▲ | C48: HDPE带法兰接头 | D48: 五金材料 | E48: 联塑/日丰/南亚 | F48: dn250（公称外径）,PN16 | G48: 5 | H48: 只 | I48: 571.93 | J48: 2859.65
A49: 47 | B49: ▲ | C49: HDPE带法兰接头 | D49: 五金材料 | E49: 联塑/日丰/南亚 | F49: dn32（公称外径）,PN16 | G49: 7 | H49: 只 | I49: 24.25 | J49: 169.75
A50: 48 | B50: ▲ | C50: HDPE带法兰接头 | D50: 五金材料 | E50: 联塑/日丰/南亚 | F50: dn40（公称外径）,PN16 | G50: 7 | H50: 只 | I50: 24.25 | J50: 169.75
A51: 49 | B51: ▲ | C51: HDPE带法兰接头 | D51: 五金材料 | E51: 联塑/日丰/南亚 | F51: dn50（公称外径）,PN16 | G51: 7 | H51: 只 | I51: 38.4 | J51: 268.8
A52: 50 | B52: ▲ | C52: HDPE带法兰接头 | D52: 五金材料 | E52: 联塑/日丰/南亚 | F52: dn63（公称外径）,PN16 | G52: 7 | H52: 只 | I52: 47.49 | J52: 332.43
A53: 51 | B53: ▲ | C53: HDPE带法兰接头 | D53: 五金材料 | E53: 联塑/日丰/南亚 | F53: dn75（公称外径）,PN16 | G53: 7 | H53: 只 | I53: 76.8 | J53: 537.6
A54: 52 | B54: ▲ | C54: HDPE带法兰接头 | D54: 五金材料 | E54: 联塑/日丰/南亚 | F54: dn90（公称外径）,PN16 | G54: 7 | H54: 只 | I54: 119.24 | J54: 834.68
A55: 53 | B55: ▲ | C55: HDPE单内丝90°弯头 | D55: 五金材料 | E55: 联塑/日丰/南亚 | F55: dn20（公称外径）,PN16 | G55: 7 | H55: 只 | I55: 11.12 | J55: 77.84
A56: 54 | B56: ▲ | C56: HDPE单内丝90°弯头 | D56: 五金材料 | E56: 联塑/日丰/南亚 | F56: dn25（公称外径）,PN16 | G56: 7 | H56: 只 | I56: 12.15 | J56: 85.05
A57: 55 | B57: ▲ | C57: HDPE单内丝90°弯头 | D57: 五金材料 | E57: 联塑/日丰/南亚 | F57: dn32（公称外径）,PN16 | G57: 7 | H57: 只 | I57: 26.27 | J57: 183.89
A58: 56 | B58: ▲ | C58: HDPE单内丝90°弯头 | D58: 五金材料 | E58: 联塑/日丰/南亚 | F58: dn40（公称外径）,PN16 | G58: 7 | H58: 只 | I58: 63.66 | J58: 445.62
A59: 57 | B59: ▲ | C59: HDPE单内丝90°弯头 | D59: 五金材料 | E59: 联塑/日丰/南亚 | F59: dn50（公称外径）,PN16 | G59: 7 | H59: 只 | I59: 71.75 | J59: 502.25
A60: 58 | B60: ▲ | C60: HDPE单内丝90°弯头 | D60: 五金材料 | E60: 联塑/日丰/南亚 | F60: dn63（公称外径）,PN16 | G60: 7 | H60: 只 | I60: 115.2 | J60: 806.4
A61: 59 | B61: ▲ | C61: HDPE单内丝90°弯头 | D61: 五金材料 | E61: 联塑/日丰/南亚 | F61: dn75（公称外径）,PN16 | G61: 7 | H61: 只 | I61: 203.12 | J61: 1421.84
A62: 60 | B62: ▲ | C62: HDPE单内丝接头 | D62: 五金材料 | E62: 联塑/日丰/南亚 | F62: dn20（公称外径）,PN16 | G62: 7 | H62: 只 | I62: 9.1 | J62: 63.7
A63: 61 | B63: ▲ | C63: HDPE单内丝接头 | D63: 五金材料 | E63: 联塑/日丰/南亚 | F63: dn25（公称外径）,PN16 | G63: 7 | H63: 只 | I63: 13.14 | J63: 91.98
A64: 62 | B64: ▲ | C64: HDPE单内丝接头 | D64: 五金材料 | E64: 联塑/日丰/南亚 | F64: dn32（公称外径）,PN16 | G64: 7 | H64: 只 | I64: 32.34 | J64: 226.38
A65: 63 | B65: ▲ | C65: HDPE单内丝接头 | D65: 五金材料 | E65: 联塑/日丰/南亚 | F65: dn40（公称外径）,PN16 | G65: 7 | H65: 只 | I65: 58.61 | J65: 410.27
A66: 64 | B66: ▲ | C66: HDPE单内丝接头 | D66: 五金材料 | E66: 联塑/日丰/南亚 | F66: dn50（公称外径）,PN16 | G66: 7 | H66: 只 | I66: 73.76 | J66: 516.32
A67: 65 | B67: ▲ | C67: HDPE单内丝接头 | D67: 五金材料 | E67: 联塑/日丰/南亚 | F67: dn63（公称外径）,PN16 | G67: 7 | H67: 只 | I67: 108.12 | J67: =I67*G67 -> 756.84
A68: 66 | B68: ▲ | C68: HDPE单内丝接头 | D68: 五金材料 | E68: 联塑/日丰/南亚 | F68: dn75（公称外径）,PN16 | G68: 7 | H68: 只 | I68: 123.28 | J68: 862.96
A69: 67 | B69: ▲ | C69: HDPE单外丝90°弯头 | D69: 五金材料 | E69: 联塑/日丰/南亚 | F69: dn20（公称外径）,PN16 | G69: 7 | H69: 只 | I69: 14.15 | J69: 99.05
A70: 68 | B70: ▲ | C70: HDPE单外丝90°弯头 | D70: 五金材料 | E70: 联塑/日丰/南亚 | F70: dn25（公称外径）,PN16 | G70: 7 | H70: 只 | I70: 19.2 | J70: 134.4
A71: 69 | B71: ▲ | C71: HDPE单外丝90°弯头 | D71: 五金材料 | E71: 联塑/日丰/南亚 | F71: dn32（公称外径）,PN16 | G71: 7 | H71: 只 | I71: 32.34 | J71: 226.38
A72: 70 | B72: ▲ | C72: HDPE单外丝90°弯头 | D72: 五金材料 | E72: 联塑/日丰/南亚 | F72: dn40（公称外径）,PN16 | G72: 7 | H72: 只 | I72: 89.93 | J72: 629.51
A73: 71 | B73: ▲ | C73: HDPE单外丝90°弯头 | D73: 五金材料 | E73: 联塑/日丰/南亚 | F73: dn50（公称外径）,PN16 | G73: 7 | H73: 只 | I73: 107.11 | J73: 749.77
A74: 72 | B74: ▲ | C74: HDPE单外丝90°弯头 | D74: 五金材料 | E74: 联塑/日丰/南亚 | F74: dn63（公称外径）,PN16 | G74: 7 | H74: 只 | I74: 139.45 | J74: 976.15
A75: 73 | B75: ▲ | C75: HDPE单外丝90°弯头 | D75: 五金材料 | E75: 联塑/日丰/南亚 | F75: dn75（公称外径）,PN16 | G75: 7 | H75: 只 | I75: 221.29 | J75: 1549.03
A76: 74 | B76: ▲ | C76: HDPE单外丝接头 | D76: 五金材料 | E76: 联塑/日丰/南亚 | F76: dn20（公称外径）,PN16 | G76: 7 | H76: 只 | I76: 13.14 | J76: 91.98
A77: 75 | B77: ▲ | C77: HDPE单外丝接头 | D77: 五金材料 | E77: 联塑/日丰/南亚 | F77: dn25（公称外径）,PN16 | G77: 7 | H77: 只 | I77: 17.18 | J77: 120.26
A78: 76 | B78: ▲ | C78: HDPE单外丝接头 | D78: 五金材料 | E78: 联塑/日丰/南亚 | F78: dn32（公称外径）,PN16 | G78: 7 | H78: 只 | I78: 31.33 | J78: 219.31
A79: 77 | B79: ▲ | C79: HDPE单外丝接头 | D79: 五金材料 | E79: 联塑/日丰/南亚 | F79: dn40（公称外径）,PN16 | G79: 7 | H79: 只 | I79: 66.69 | J79: 466.83
A80: 78 | B80: ▲ | C80: HDPE单外丝接头 | D80: 五金材料 | E80: 联塑/日丰/南亚 | F80: dn50（公称外径）,PN16 | G80: 7 | H80: 只 | I80: 86.9 | J80: 608.3
A81: 79 | B81: ▲ | C81: HDPE单外丝接头 | D81: 五金材料 | E81: 联塑/日丰/南亚 | F81: dn63（公称外径）,PN16 | G81: 7 | H81: 只 | I81: 120.25 | J81: 841.75
A82: 80 | B82: ▲ | C82: HDPE单外丝接头 | D82: 五金材料 | E82: 联塑/日丰/南亚 | F82: dn75（公称外径）,PN16 | G82: 7 | H82: 只 | I82: 129.34 | J82: 905.38
A83: 81 | B83: ▲ | C83: HDPE管 | D83: 五金材料 | E83: 联塑/日丰/南亚 | F83: dn110（公称外径）,PN16 | G83: 65 | H83: 米 | I83: 129.34 | J83: 8407.1
A84: 82 | B84: ▲ | C84: HDPE管 | D84: 五金材料 | E84: 联塑/日丰/南亚 | F84: dn125（公称外径）,PN16 | G84: 53 | H84: 米 | I84: 141.85 | J84: 7518.05
A85: 83 | B85: ▲ | C85: HDPE管 | D85: 五金材料 | E85: 联塑/日丰/南亚 | F85: dn140（公称外径）,PN16 | G85: 53 | H85: 米 | I85: 126.31 | J85: 6694.43
A86: 84 | B86: ▲ | C86: HDPE管 | D86: 五金材料 | E86: 联塑/日丰/南亚 | F86: dn160（公称外径）,PN16 | G86: 53 | H86: 米 | I86: 269.8 | J86: 14299.4
A87: 85 | B87: ▲ | C87: HDPE管 | D87: 五金材料 | E87: 联塑/日丰/南亚 | F87: dn20（公称外径）,PN16 | G87: 185 | H87: 米 | I87: 7.07 | J87: 1307.95
A88: 86 | B88: ▲ | C88: HDPE管 | D88: 五金材料 | E88: 联塑/日丰/南亚 | F88: dn200（公称外径）,PN16 | G88: 53 | H88: 米 | I88: 405.21 | J88: 21476.13
A89: 87 | B89: ▲ | C89: HDPE管 | D89: 五金材料 | E89: 联塑/日丰/南亚 | F89: dn225（公称外径）,PN16 | G89: 17 | H89: 米 | I89: 572.95 | J89: 9740.15
A90: 88 | B90: ▲ | C90: HDPE管 | D90: 五金材料 | E90: 联塑/日丰/南亚 | F90: dn25（公称外径）,PN16 | G90: 185 | H90: 米 | I90: 8.09 | J90: 1496.65
A91: 89 | B91: ▲ | C91: HDPE管 | D91: 五金材料 | E91: 联塑/日丰/南亚 | F91: dn250（公称外径）,PN16 | G91: 17 | H91: 米 | I91: 650.75 | J91: 11062.75
A92: 90 | B92: ▲ | C92: HDPE管 | D92: 五金材料 | E92: 联塑/日丰/南亚 | F92: dn32（公称外径）,PN16 | G92: 185 | H92: 米 | I92: 12.15 | J92: 2247.75
A93: 91 | B93: ▲ | C93: HDPE管 | D93: 五金材料 | E93: 联塑/日丰/南亚 | F93: dn40（公称外径）,PN16 | G93: 185 | H93: 米 | I93: 19.29 | J93: 3568.65
A94: 92 | B94: ▲ | C94: HDPE管 | D94: 五金材料 | E94: 联塑/日丰/南亚 | F94: dn50（公称外径）,PN16 | G94: 185 | H94: 米 | I94: 24.07 | J94: 4452.95
A95: 93 | B95: ▲ | C95: HDPE管 | D95: 五金材料 | E95: 联塑/日丰/南亚 | F95: dn63（公称外径）,PN16 | G95: 65 | H95: 米 | I95: 43.45 | J95: 2824.25
A96: 94 | B96: ▲ | C96: HDPE管 | D96: 五金材料 | E96: 联塑/日丰/南亚 | F96: dn75（公称外径）,PN16 | G96: 65 | H96: 米 | I96: 60.63 | J96: 3940.95
A97: 95 | B97: ▲ | C97: HDPE管 | D97: 五金材料 | E97: 联塑/日丰/南亚 | F97: dn90（公称外径）,PN16 | G97: 65 | H97: 米 | I97: 83.87 | J97: 5451.55
A98: 96 | B98: ▲ | C98: HDPE管帽 | D98: 五金材料 | E98: 联塑/日丰/南亚 | F98: dn110 | G98: 4 | H98: 只 | I98: 26.27 | J98: 105.08
A99: 97 | B99: ▲ | C99: HDPE管帽 | D99: 五金材料 | E99: 联塑/日丰/南亚 | F99: dn125 | G99: 4 | H99: 只 | I99: 32.34 | J99: 129.36
A100: 98 | B100: ▲ | C100: HDPE管帽 | D100: 五金材料 | E100: 联塑/日丰/南亚 | F100: dn140 | G100: 4 | H100: 只 | I100: 36.38 | J100: 145.52
A101: 99 | B101: ▲ | C101: HDPE管帽 | D101: 五金材料 | E101: 联塑/日丰/南亚 | F101: dn160 | G101: 4 | H101: 只 | I101: 73.76 | J101: 295.04
A102: 100 | B102: ▲ | C102: HDPE管帽 | D102: 五金材料 | E102: 联塑/日丰/南亚 | F102: dn32 | G102: 4 | H102: 只 | I102: 2.03 | J102: 8.12
A103: 101 | B103: ▲ | C103: HDPE管帽 | D103: 五金材料 | E103: 联塑/日丰/南亚 | F103: dn40 | G103: 4 | H103: 只 | I103: 3.03 | J103: 12.12
A104: 102 | B104: ▲ | C104: HDPE管帽 | D104: 五金材料 | E104: 联塑/日丰/南亚 | F104: dn50 | G104: 4 | H104: 只 | I104: 4.04 | J104: 16.16
A105: 103 | B105: ▲ | C105: HDPE管帽 | D105: 五金材料 | E105: 联塑/日丰/南亚 | F105: dn63 | G105: 4 | H105: 只 | I105: 6.06 | J105: 24.24
A106: 104 | B106: ▲ | C106: HDPE管帽 | D106: 五金材料 | E106: 联塑/日丰/南亚 | F106: dn75 | G106: 4 | H106: 只 | I106: 8.09 | J106: 32.36
A107: 105 | B107: ▲ | C107: HDPE管帽 | D107: 五金材料 | E107: 联塑/日丰/南亚 | F107: dn90 | G107: 4 | H107: 只 | I107: 15.16 | J107: 60.64
A108: 106 | B108: ▲ | C108: HDPE截止阀 | D108: 五金材料 | E108: 联塑/日丰/南亚 | F108: dn110（公称外径）,PN16 | G108: 4 | H108: 只 | I108: 474.93 | J108: 1899.72
A109: 107 | B109: ▲ | C109: HDPE截止阀 | D109: 五金材料 | E109: 联塑/日丰/南亚 | F109: dn20（公称外径）,PN16 | G109: 7 | H109: 只 | I109: 26.27 | J109: 183.89
A110: 108 | B110: ▲ | C110: HDPE截止阀 | D110: 五金材料 | E110: 联塑/日丰/南亚 | F110: dn25（公称外径）,PN16 | G110: 7 | H110: 只 | I110: 32.34 | J110: 226.38
A111: 109 | B111: ▲ | C111: HDPE截止阀 | D111: 五金材料 | E111: 联塑/日丰/南亚 | F111: dn32（公称外径）,PN16 | G111: 7 | H111: 只 | I111: 54.57 | J111: 381.99
A112: 110 | B112: ▲ | C112: HDPE截止阀 | D112: 五金材料 | E112: 联塑/日丰/南亚 | F112: dn40（公称外径）,PN16 | G112: 7 | H112: 只 | I112: 76.8 | J112: 537.6
A113: 111 | B113: ▲ | C113: HDPE截止阀 | D113: 五金材料 | E113: 联塑/日丰/南亚 | F113: dn50（公称外径）,PN16 | G113: 7 | H113: 只 | I113: 108.12 | J113: 756.84
A114: 112 | B114: ▲ | C114: HDPE截止阀 | D114: 五金材料 | E114: 联塑/日丰/南亚 | F114: dn63（公称外径）,PN16 | G114: 7 | H114: 只 | I114: 199.07 | J114: 1393.49
A115: 113 | B115: ▲ | C115: HDPE截止阀 | D115: 五金材料 | E115: 联塑/日丰/南亚 | F115: dn75（公称外径）,PN16 | G115: 7 | H115: 只 | I115: 239.49 | J115: 1676.43
A116: 114 | B116: ▲ | C116: HDPE截止阀 | D116: 五金材料 | E116: 联塑/日丰/南亚 | F116: dn90（公称外径）,PN16 | G116: 4 | H116: 只 | I116: 298.09 | J116: 1192.36
A117: 115 | B117: ▲ | C117: HDPE异径接头 | D117: 五金材料 | E117: 联塑/日丰/南亚 | F117: dn110转dn90，PN16 | G117: 4 | H117: 只 | I117: 32.34 | J117: 129.36
A118: 116 | B118: ▲ | C118: HDPE异径接头 | D118: 五金材料 | E118: 联塑/日丰/南亚 | F118: dn125转dn110，PN16 | G118: 3 | H118: 只 | I118: 47.49 | J118: 142.47
A119: 117 | B119: ▲ | C119: HDPE异径接头 | D119: 五金材料 | E119: 联塑/日丰/南亚 | F119: dn140转dn125，PN16 | G119: 3 | H119: 只 | I119: 70.74 | J119: 212.22
A120: 118 | B120: ▲ | C120: HDPE异径接头 | D120: 五金材料 | E120: 联塑/日丰/南亚 | F120: dn160转dn140，PN16 | G120: 3 | H120: 只 | I120: 107.11 | J120: 321.33
A121: 119 | B121: ▲ | C121: HDPE异径接头 | D121: 五金材料 | E121: 联塑/日丰/南亚 | F121: dn200转dn160，PN16 | G121: 4 | H121: 只 | I121: 156.63 | J121: 626.52
A122: 120 | B122: ▲ | C122: HDPE异径接头 | D122: 五金材料 | E122: 联塑/日丰/南亚 | F122: dn225转dn200，PN16 | G122: 3 | H122: 只 | I122: 179.87 | J122: 539.61
A123: 121 | B123: ▲ | C123: HDPE异径接头 | D123: 五金材料 | E123: 联塑/日丰/南亚 | F123: dn250转dn225，PN16 | G123: 3 | H123: 只 | I123: 249.59 | J123: 748.77
A124: 122 | B124: ▲ | C124: HDPE异径接头 | D124: 五金材料 | E124: 联塑/日丰/南亚 | F124: dn32转dn20，PN16 | G124: 4 | H124: 只 | I124: 2.01 | J124: 8.04
A125: 123 | B125: ▲ | C125: HDPE异径接头 | D125: 五金材料 | E125: 联塑/日丰/南亚 | F125: dn40转dn32，PN16 | G125: 4 | H125: 只 | I125: 3.03 | J125: 12.12
A126: 124 | B126: ▲ | C126: HDPE异径接头 | D126: 五金材料 | E126: 联塑/日丰/南亚 | F126: dn50转dn40，PN16 | G126: 4 | H126: 只 | I126: 4.04 | J126: 16.16
A127: 125 | B127: ▲ | C127: HDPE异径接头 | D127: 五金材料 | E127: 联塑/日丰/南亚 | F127: dn63转dn50，PN16 | G127: 4 | H127: 只 | I127: 7.07 | J127: 28.28
A128: 126 | B128: ▲ | C128: HDPE异径接头 | D128: 五金材料 | E128: 联塑/日丰/南亚 | F128: dn75转dn63，PN16 | G128: 4 | H128: 只 | I128: 10.11 | J128: 40.44
A129: 127 | B129: ▲ | C129: HDPE异径接头 | D129: 五金材料 | E129: 联塑/日丰/南亚 | F129: dn90转dn75，PN16 | G129: 4 | H129: 只 | I129: 13.14 | J129: 52.56
A130: 128 | B130: ▲ | C130: HDPE异径三通 | D130: 五金材料 | E130: 联塑/日丰/南亚 | F130: dn110转dn90，PN16 | G130: 4 | H130: 只 | I130: 86.9 | J130: 347.6
A131: 129 | B131: ▲ | C131: HDPE异径三通 | D131: 五金材料 | E131: 联塑/日丰/南亚 | F131: dn125转dn110，PN16 | G131: 3 | H131: 只 | I131: 88.93 | J131: =I131*G131 -> 266.79
A132: 130 | B132: ▲ | C132: HDPE异径三通 | D132: 五金材料 | E132: 联塑/日丰/南亚 | F132: dn140转dn125，PN16 | G132: 3 | H132: 只 | I132: 108.12 | J132: 324.36
A133: 131 | B133: ▲ | C133: HDPE异径三通 | D133: 五金材料 | E133: 联塑/日丰/南亚 | F133: dn160转dn140，PN16 | G133: 3 | H133: 只 | I133: 202.1 | J133: 606.3
A134: 132 | B134: ▲ | C134: HDPE异径三通 | D134: 五金材料 | E134: 联塑/日丰/南亚 | F134: dn32转dn20，PN16 | G134: 4 | H134: 只 | I134: 3.03 | J134: 12.12
A135: 133 | B135: ▲ | C135: HDPE异径三通 | D135: 五金材料 | E135: 联塑/日丰/南亚 | F135: dn40转dn20，PN16 | G135: 4 | H135: 只 | I135: 4.04 | J135: 16.16
A136: 134 | B136: ▲ | C136: HDPE异径三通 | D136: 五金材料 | E136: 联塑/日丰/南亚 | F136: dn40转dn32，PN16 | G136: 4 | H136: 只 | I136: 5.05 | J136: 20.2
A137: 135 | B137: ▲ | C137: HDPE异径三通 | D137: 五金材料 | E137: 联塑/日丰/南亚 | F137: dn50转dn32，PN16 | G137: 4 | H137: 只 | I137: 7.07 | J137: 28.28
A138: 136 | B138: ▲ | C138: HDPE异径三通 | D138: 五金材料 | E138: 联塑/日丰/南亚 | F138: dn50转dn40，PN16 | G138: 4 | H138: 只 | I138: 7.07 | J138: 28.28
A139: 137 | B139: ▲ | C139: HDPE异径三通 | D139: 五金材料 | E139: 联塑/日丰/南亚 | F139: dn63转dn50，PN16 | G139: 4 | H139: 只 | I139: 13.14 | J139: 52.56
A140: 138 | B140: ▲ | C140: HDPE异径三通 | D140: 五金材料 | E140: 联塑/日丰/南亚 | F140: dn75转dn65，PN16 | G140: 4 | H140: 只 | I140: 22.23 | J140: 88.92
A141: 139 | B141: ▲ | C141: HDPE异径三通 | D141: 五金材料 | E141: 联塑/日丰/南亚 | F141: dn90转dn75，PN16 | G141: 4 | H141: 只 | I141: 35.37 | J141: 141.48
A142: 140 | B142: ▲ | C142: HDPE正三通 | D142: 五金材料 | E142: 联塑/日丰/南亚 | F142: dn110（公称外径）,PN16 | G142: 5 | H142: 只 | I142: 60.63 | J142: 303.15
A143: 141 | B143: ▲ | C143: HDPE正三通 | D143: 五金材料 | E143: 联塑/日丰/南亚 | F143: dn125（公称外径）,PN16 | G143: 3 | H143: 只 | I143: 126.31 | J143: 378.93
A144: 142 | B144: ▲ | C144: HDPE正三通 | D144: 五金材料 | E144: 联塑/日丰/南亚 | F144: dn140（公称外径）,PN16 | G144: 3 | H144: 只 | I144: 149.55 | J144: 448.65
A145: 143 | B145: ▲ | C145: HDPE正三通 | D145: 五金材料 | E145: 联塑/日丰/南亚 | F145: dn160（公称外径）,PN16 | G145: 4 | H145: 只 | I145: 204.12 | J145: 816.48
A146: 144 | B146: ▲ | C146: HDPE正三通 | D146: 五金材料 | E146: 联塑/日丰/南亚 | F146: dn20（公称外径）,PN16 | G146: 7 | H146: 只 | I146: 2.03 | J146: 14.21
A147: 145 | B147: ▲ | C147: HDPE正三通 | D147: 五金材料 | E147: 联塑/日丰/南亚 | F147: dn200（公称外径）,PN16 | G147: 4 | H147: 只 | I147: 383.98 | J147: 1535.92
A148: 146 | B148: ▲ | C148: HDPE正三通 | D148: 五金材料 | E148: 联塑/日丰/南亚 | F148: dn225（公称外径）,PN16 | G148: 3 | H148: 只 | I148: 533.54 | J148: 1600.62
A149: 147 | B149: ▲ | C149: HDPE正三通 | D149: 五金材料 | E149: 联塑/日丰/南亚 | F149: dn25（公称外径）,PN16 | G149: 7 | H149: 只 | I149: 2.03 | J149: 14.21
A150: 148 | B150: ▲ | C150: HDPE正三通 | D150: 五金材料 | E150: 联塑/日丰/南亚 | F150: dn250（公称外径）,PN16 | G150: 4 | H150: 只 | I150: 790.2 | J150: 3160.8
A151: 149 | B151: ▲ | C151: HDPE正三通 | D151: 五金材料 | E151: 联塑/日丰/南亚 | F151: dn32（公称外径）,PN16 | G151: 7 | H151: 只 | I151: 3.03 | J151: 21.21
A152: 150 | B152: ▲ | C152: HDPE正三通 | D152: 五金材料 | E152: 联塑/日丰/南亚 | F152: dn40（公称外径）,PN16 | G152: 7 | H152: 只 | I152: 5.05 | J152: 35.35
A153: 151 | B153: ▲ | C153: HDPE正三通 | D153: 五金材料 | E153: 联塑/日丰/南亚 | F153: dn50（公称外径）,PN16 | G153: 7 | H153: 只 | I153: 8.09 | J153: 56.63
A154: 152 | B154: ▲ | C154: HDPE正三通 | D154: 五金材料 | E154: 联塑/日丰/南亚 | F154: dn63（公称外径）,PN16 | G154: 7 | H154: 只 | I154: 14.15 | J154: 99.05
A155: 153 | B155: ▲ | C155: HDPE正三通 | D155: 五金材料 | E155: 联塑/日丰/南亚 | F155: dn75（公称外径）,PN16 | G155: 7 | H155: 只 | I155: 23.24 | J155: 162.68
A156: 154 | B156: ▲ | C156: HDPE正三通 | D156: 五金材料 | E156: 联塑/日丰/南亚 | F156: dn90（公称外径）,PN16 | G156: 7 | H156: 只 | I156: 37.39 | J156: 261.73
A157: 155 | B157: ▲ | C157: HDPE直接 | D157: 五金材料 | E157: 联塑/日丰/南亚 | F157: dn110（公称外径）,PN16 | G157: 10 | H157: 只 | I157: 23.24 | J157: 232.4
A158: 156 | B158: ▲ | C158: HDPE直接 | D158: 五金材料 | E158: 联塑/日丰/南亚 | F158: dn125（公称外径）,PN16 | G158: 4 | H158: 只 | I158: 74.78 | J158: 299.12
A159: 157 | B159: ▲ | C159: HDPE直接 | D159: 五金材料 | E159: 联塑/日丰/南亚 | F159: dn140（公称外径）,PN16 | G159: 4 | H159: 只 | I159: 108.12 | J159: 432.48
A160: 158 | B160: ▲ | C160: HDPE直接 | D160: 五金材料 | E160: 联塑/日丰/南亚 | F160: dn160（公称外径）,PN16 | G160: 4 | H160: 只 | I160: 118.23 | J160: 472.92
A161: 159 | B161: ▲ | C161: HDPE直接 | D161: 五金材料 | E161: 联塑/日丰/南亚 | F161: dn20（公称外径）,PN16 | G161: 19 | H161: 只 | I161: 1.02 | J161: 19.38
A162: 160 | B162: ▲ | C162: HDPE直接 | D162: 五金材料 | E162: 联塑/日丰/南亚 | F162: dn200（公称外径）,PN16 | G162: 4 | H162: 只 | I162: 188.96 | J162: 755.84
A163: 161 | B163: ▲ | C163: HDPE直接 | D163: 五金材料 | E163: 联塑/日丰/南亚 | F163: dn225（公称外径）,PN16 | G163: 4 | H163: 只 | I163: 235.44 | J163: 941.76
A164: 162 | B164: ▲ | C164: HDPE直接 | D164: 五金材料 | E164: 联塑/日丰/南亚 | F164: dn25（公称外径）,PN16 | G164: 19 | H164: 只 | I164: 1.02 | J164: 19.38
A165: 163 | B165: ▲ | C165: HDPE直接 | D165: 五金材料 | E165: 联塑/日丰/南亚 | F165: dn250（公称外径）,PN16 | G165: 4 | H165: 只 | I165: 287.99 | J165: 1151.96
A166: 164 | B166: ▲ | C166: HDPE直接 | D166: 五金材料 | E166: 联塑/日丰/南亚 | F166: dn32（公称外径）,PN16 | G166: 19 | H166: 只 | I166: 2.03 | J166: 38.57
A167: 165 | B167: ▲ | C167: HDPE直接 | D167: 五金材料 | E167: 联塑/日丰/南亚 | F167: dn40（公称外径）,PN16 | G167: 19 | H167: 只 | I167: 3.03 | J167: 57.57
A168: 166 | B168: ▲ | C168: HDPE直接 | D168: 五金材料 | E168: 联塑/日丰/南亚 | F168: dn50（公称外径）,PN16 | G168: 19 | H168: 只 | I168: 3.03 | J168: 57.57
A169: 167 | B169: ▲ | C169: HDPE直接 | D169: 五金材料 | E169: 联塑/日丰/南亚 | F169: dn63（公称外径）,PN16 | G169: 10 | H169: 只 | I169: 6.06 | J169: 60.6
A170: 168 | B170: ▲ | C170: HDPE直接 | D170: 五金材料 | E170: 联塑/日丰/南亚 | F170: dn75（公称外径）,PN16 | G170: 10 | H170: 只 | I170: 8.09 | J170: 80.9
A171: 169 | B171: ▲ | C171: HDPE直接 | D171: 五金材料 | E171: 联塑/日丰/南亚 | F171: dn90（公称外径）,PN16 | G171: 10 | H171: 只 | I171: 13.14 | J171: 131.4
A172: 170 | B172: ▲ | C172: O型圈粘接胶水 | D172: 五金材料 | E172: 乐泰/奥斯邦/司达行 | F172: 20g/瓶 | G172: 8 | H172: 瓶 | I172: 65.68 | J172: 525.44
A173: 171 | B173: ▲ | C173: PPR 45°弯头 | D173: 五金材料 | E173: 联塑/日丰/南亚 | F173: dn110（公称外径）,PN16 | G173: 3 | H173: 只 | I173: 47.49 | J173: 142.47
A174: 172 | B174: ▲ | C174: PPR 45°弯头 | D174: 五金材料 | E174: 联塑/日丰/南亚 | F174: dn125（公称外径）,PN16 | G174: 3 | H174: 只 | I174: 86.9 | J174: 260.7
A175: 173 | B175: ▲ | C175: PPR 45°弯头 | D175: 五金材料 | E175: 联塑/日丰/南亚 | F175: dn140（公称外径）,PN16 | G175: 3 | H175: 只 | I175: 86.9 | J175: 260.7
A176: 174 | B176: ▲ | C176: PPR 45°弯头 | D176: 五金材料 | E176: 联塑/日丰/南亚 | F176: dn160（公称外径）,PN16 | G176: 3 | H176: 只 | I176: 164.71 | J176: 494.13
A177: 175 | B177: ▲ | C177: PPR 45°弯头 | D177: 五金材料 | E177: 联塑/日丰/南亚 | F177: dn20（公称外径）,PN16 | G177: 5 | H177: 只 | I177: 1.7 | J177: 8.5
A178: 176 | B178: ▲ | C178: PPR 45°弯头 | D178: 五金材料 | E178: 联塑/日丰/南亚 | F178: dn25（公称外径）,PN16 | G178: 5 | H178: 只 | I178: 2.03 | J178: 10.15
A179: 177 | B179: ▲ | C179: PPR 45°弯头 | D179: 五金材料 | E179: 联塑/日丰/南亚 | F179: dn32（公称外径）,PN16 | G179: 5 | H179: 只 | I179: 3.03 | J179: 15.15
A180: 178 | B180: ▲ | C180: PPR 45°弯头 | D180: 五金材料 | E180: 联塑/日丰/南亚 | F180: dn40（公称外径）,PN16 | G180: 5 | H180: 只 | I180: 4.04 | J180: 20.2
A181: 179 | B181: ▲ | C181: PPR 45°弯头 | D181: 五金材料 | E181: 联塑/日丰/南亚 | F181: dn50（公称外径）,PN16 | G181: 5 | H181: 只 | I181: 6.06 | J181: 30.3
A182: 180 | B182: ▲ | C182: PPR 45°弯头 | D182: 五金材料 | E182: 联塑/日丰/南亚 | F182: dn63（公称外径）,PN16 | G182: 4 | H182: 只 | I182: 11.12 | J182: 44.48
A183: 181 | B183: ▲ | C183: PPR 45°弯头 | D183: 五金材料 | E183: 联塑/日丰/南亚 | F183: dn75（公称外径）,PN16 | G183: 4 | H183: 只 | I183: 18.19 | J183: 72.76
A184: 182 | B184: ▲ | C184: PPR 45°弯头 | D184: 五金材料 | E184: 联塑/日丰/南亚 | F184: dn90（公称外径）,PN16 | G184: 4 | H184: 只 | I184: 28.3 | J184: 113.2
A185: 183 | B185: ▲ | C185: PPR 90°弯头 | D185: 五金材料 | E185: 联塑/日丰/南亚 | F185: dn110（公称外径）,PN16 | G185: 7 | H185: 只 | I185: 68.72 | J185: 481.04
A186: 184 | B186: ▲ | C186: PPR 90°弯头 | D186: 五金材料 | E186: 联塑/日丰/南亚 | F186: dn125（公称外径）,PN16 | G186: 4 | H186: 只 | I186: 104.08 | J186: 416.32
A187: 185 | B187: ▲ | C187: PPR 90°弯头 | D187: 五金材料 | E187: 联塑/日丰/南亚 | F187: dn140（公称外径）,PN16 | G187: 4 | H187: 只 | I187: 104.08 | J187: 416.32
A188: 186 | B188: ▲ | C188: PPR 90°弯头 | D188: 五金材料 | E188: 联塑/日丰/南亚 | F188: dn160（公称外径）,PN16 | G188: 4 | H188: 只 | I188: 190.98 | J188: 763.92
A189: 187 | B189: ▲ | C189: PPR 90°弯头 | D189: 五金材料 | E189: 联塑/日丰/南亚 | F189: dn20（公称外径）,PN16 | G189: 19 | H189: 只 | I189: 1.02 | J189: 19.38
A190: 188 | B190: ▲ | C190: PPR 90°弯头 | D190: 五金材料 | E190: 联塑/日丰/南亚 | F190: dn25（公称外径）,PN16 | G190: 19 | H190: 只 | I190: 2.03 | J190: 38.57
A191: 189 | B191: ▲ | C191: PPR 90°弯头 | D191: 五金材料 | E191: 联塑/日丰/南亚 | F191: dn32（公称外径）,PN16 | G191: 19 | H191: 只 | I191: 2.03 | J191: 38.57
A192: 190 | B192: ▲ | C192: PPR 90°弯头 | D192: 五金材料 | E192: 联塑/日丰/南亚 | F192: dn40（公称外径）,PN16 | G192: 7 | H192: 只 | I192: 4.04 | J192: 28.28
A193: 191 | B193: ▲ | C193: PPR 90°弯头 | D193: 五金材料 | E193: 联塑/日丰/南亚 | F193: dn50（公称外径）,PN16 | G193: 7 | H193: 只 | I193: 8.09 | J193: 56.63
A194: 192 | B194: ▲ | C194: PPR 90°弯头 | D194: 五金材料 | E194: 联塑/日丰/南亚 | F194: dn63（公称外径）,PN16 | G194: 13 | H194: 只 | I194: 13.14 | J194: 170.82
A195: 193 | B195: ▲ | C195: PPR 90°弯头 | D195: 五金材料 | E195: 联塑/日丰/南亚 | F195: dn75（公称外径）,PN16 | G195: 7 | H195: 只 | I195: 22.23 | J195: =I195*G195 -> 155.61
A196: 194 | B196: ▲ | C196: PPR 90°弯头 | D196: 五金材料 | E196: 联塑/日丰/南亚 | F196: dn90（公称外径）,PN16 | G196: 7 | H196: 只 | I196: 40.42 | J196: 282.94
A197: 195 | B197: ▲ | C197: PPR 管 | D197: 五金材料 | E197: 联塑/日丰/南亚 | F197: dn110（公称外径）,PN16 | G197: 25 | H197: 米 | I197: 140.46 | J197: 3511.5
A198: 196 | B198: ▲ | C198: PPR 管 | D198: 五金材料 | E198: 联塑/日丰/南亚 | F198: dn125（公称外径）,PN16 | G198: 25 | H198: 米 | I198: 202.1 | J198: 5052.5
A199: 197 | B199: ▲ | C199: PPR 管 | D199: 五金材料 | E199: 联塑/日丰/南亚 | F199: dn140（公称外径）,PN16 | G199: 25 | H199: 米 | I199: 228.37 | J199: 5709.25
A200: 198 | B200: ▲ | C200: PPR 管 | D200: 五金材料 | E200: 联塑/日丰/南亚 | F200: dn160（公称外径）,PN16 | G200: 25 | H200: 米 | I200: 630.54 | J200: 15763.5
... 2306 more rows

Sheet Sheet1
A1: 2025年五金材料及工器具暂定采购清单
A2: 序号 | B2: 物资重要程度 | C2: 物资名称 | D2: 物资类别 | E2: 推荐品牌 | F2: 规格型号 | G2: 暂定数量 | H2: 单位 | I2: 暂定含税单价 | J2: 暂定含税总价 | K2: 备注
A3: 1 | B3: ▲ | C3: UPVC给水管 | D3: 五金材料 | E3: 联塑/日丰/南亚 | F3: DN20,PN16 | G3: 240 | H3: 米 | J3: 0
A4: 2 | B4: ▲ | C4: UPVC给水管 | D4: 五金材料 | E4: 联塑/日丰/南亚 | F4: DN25,PN16 | G4: 360 | H4: 米 | J4: 0
A5: 3 | B5: ▲ | C5: UPVC给水管 | D5: 五金材料 | E5: 联塑/日丰/南亚 | F5: DN32,PN16 | G5: 360 | H5: 米 | J5: 0
A6: 4 | B6: ▲ | C6: UPVC给水管 | D6: 五金材料 | E6: 联塑/日丰/南亚 | F6: DN40,PN16 | G6: 240 | H6: 米 | J6: 0
A7: 5 | B7: ▲ | C7: UPVC给水管 | D7: 五金材料 | E7: 联塑/日丰/南亚 | F7: DN50,PN16 | G7: 240 | H7: 米 | J7: 0
A8: 6 | B8: ▲ | C8: UPVC给水管 | D8: 五金材料 | E8: 联塑/日丰/南亚 | F8: DN63,PN16 | G8: 150 | H8: 米 | J8: 0
A9: 7 | B9: ▲ | C9: UPVC给水管 | D9: 五金材料 | E9: 联塑/日丰/南亚 | F9: DN75,PN16 | G9: 70 | H9: 米 | J9: 0
A10: 8 | B10: ▲ | C10: UPVC给水管 | D10: 五金材料 | E10: 联塑/日丰/南亚 | F10: DN90,PN16 | G10: 70 | H10: 米 | J10: 0
A11: 9 | B11: ▲ | C11: UPVC给水管 | D11: 五金材料 | E11: 联塑/日丰/南亚 | F11: DN110,PN16 | G11: 130 | H11: 米 | J11: 0
A12: 10 | B12: ▲ | C12: UPVC给水管 | D12: 五金材料 | E12: 联塑/日丰/南亚 | F12: DN125,PN16 | G12: 46 | H12: 米 | J12: 0
A13: 11 | B13: ▲ | C13: UPVC给水管 | D13: 五金材料 | E13: 联塑/日丰/南亚 | F13: DN140,PN16 | G13: 34 | H13: 米 | J13: 0
A14: 12 | B14: ▲ | C14: UPVC给水管 | D14: 五金材料 | E14: 联塑/日丰/南亚 | F14: DN160,PN16 | G14: 34 | H14: 米 | J14: 0
A15: 13 | B15: ▲ | C15: UPVC给水管 | D15: 五金材料 | E15: 联塑/日丰/南亚 | F15: DN200,PN16 | G15: 16 | H15: 米 | J15: 0
A16: 14 | B16: ▲ | C16: UPVC给水管 | D16: 五金材料 | E16: 联塑/日丰/南亚 | F16: DN225,PN16 | G16: 16 | H16: 米 | J16: 0
A17: 15 | B17: ▲ | C17: UPVC给水管 | D17: 五金材料 | E17: 联塑/日丰/南亚 | F17: DN250,PN16 | G17: 16 | H17: 米 | J17: 0
A18: 16 | B18: ▲ | C18: UPVC给水管直接 | D18: 五金材料 | E18: 联塑/日丰/南亚 | F18: DN20,PN16 | G18: 240 | H18: 只 | J18: 0
A19: 17 | B19: ▲ | C19: UPVC给水管直接 | D19: 五金材料 | E19: 联塑/日丰/南亚 | F19: DN25,PN16 | G19: 240 | H19: 只 | J19: 0
A20: 18 | B20: ▲ | C20: UPVC给水管直接 | D20: 五金材料 | E20: 联塑/日丰/南亚 | F20: DN32,PN16 | G20: 240 | H20: 只 | J20: 0
A21: 19 | B21: ▲ | C21: UPVC给水管直接 | D21: 五金材料 | E21: 联塑/日丰/南亚 | F21: DN40,PN16 | G21: 150 | H21: 只 | J21: 0
A22: 20 | B22: ▲ | C22: UPVC给水管直接 | D22: 五金材料 | E22: 联塑/日丰/南亚 | F22: DN50,PN16 | G22: 150 | H22: 只 | J22: 0
A23: 21 | B23: ▲ | C23: UPVC给水管直接 | D23: 五金材料 | E23: 联塑/日丰/南亚 | F23: DN63,PN16 | G23: 105 | H23: 只 | J23: 0
A24: 22 | B24: ▲ | C24: UPVC给水管直接 | D24: 五金材料 | E24: 联塑/日丰/南亚 | F24: DN75,PN16 | G24: 55 | H24: 只 | J24: 0
A25: 23 | B25: ▲ | C25: UPVC给水管直接 | D25: 五金材料 | E25: 联塑/日丰/南亚 | F25: DN90,PN16 | G25: 55 | H25: 只 | J25: 0
A26: 24 | B26: ▲ | C26: UPVC给水管直接 | D26: 五金材料 | E26: 联塑/日丰/南亚 | F26: DN110,PN16 | G26: 55 | H26: 只 | J26: 0
A27: 25 | B27: ▲ | C27: UPVC给水管直接 | D27: 五金材料 | E27: 联塑/日丰/南亚 | F27: DN125,PN16 | G27: 37 | H27: 只 | J27: 0
A28: 26 | B28: ▲ | C28: UPVC给水管直接 | D28: 五金材料 | E28: 联塑/日丰/南亚 | F28: DN140,PN16 | G28: 37 | H28: 只 | J28: 0
A29: 27 | B29: ▲ | C29: UPVC给水管直接 | D29: 五金材料 | E29: 联塑/日丰/南亚 | F29: DN160,PN16 | G29: 25 | H29: 只 | J29: 0
A30: 28 | B30: ▲ | C30: UPVC给水管直接 | D30: 五金材料 | E30: 联塑/日丰/南亚 | F30: DN200,PN16 | G30: 10 | H30: 只 | J30: 0
A31: 29 | B31: ▲ | C31: UPVC给水管直接 | D31: 五金材料 | E31: 联塑/日丰/南亚 | F31: DN225,PN16 | G31: 10 | H31: 只 | J31: 0
A32: 30 | B32: ▲ | C32: UPVC给水管直接 | D32: 五金材料 | E32: 联塑/日丰/南亚 | F32: DN250,PN16 | G32: 10 | H32: 只 | J32: 0
A33: 31 | B33: ▲ | C33: UPVC给水管90°弯头 | D33: 五金材料 | E33: 联塑/日丰/南亚 | F33: DN20,PN16 | G33: 150 | H33: 只 | J33: 0
A34: 32 | B34: ▲ | C34: UPVC给水管90°弯头 | D34: 五金材料 | E34: 联塑/日丰/南亚 | F34: DN25,PN16 | G34: 195 | H34: 只 | J34: 0
A35: 33 | B35: ▲ | C35: UPVC给水管90°弯头 | D35: 五金材料 | E35: 联塑/日丰/南亚 | F35: DN32,PN16 | G35: 195 | H35: 只 | J35: 0
A36: 34 | B36: ▲ | C36: UPVC给水管90°弯头 | D36: 五金材料 | E36: 联塑/日丰/南亚 | F36: DN40,PN16 | G36: 195 | H36: 只 | J36: 0
A37: 35 | B37: ▲ | C37: UPVC给水管90°弯头 | D37: 五金材料 | E37: 联塑/日丰/南亚 | F37: DN50,PN16 | G37: 195 | H37: 只 | J37: 0
A38: 36 | B38: ▲ | C38: UPVC给水管90°弯头 | D38: 五金材料 | E38: 联塑/日丰/南亚 | F38: DN63,PN16 | G38: 132 | H38: 只 | J38: 0
A39: 37 | B39: ▲ | C39: UPVC给水管90°弯头 | D39: 五金材料 | E39: 联塑/日丰/南亚 | F39: DN75,PN16 | G39: 55 | H39: 只 | J39: 0
A40: 38 | B40: ▲ | C40: UPVC给水管90°弯头 | D40: 五金材料 | E40: 联塑/日丰/南亚 | F40: DN90,PN16 | G40: 37 | H40: 只 | J40: 0
A41: 39 | B41: ▲ | C41: UPVC给水管90°弯头 | D41: 五金材料 | E41: 联塑/日丰/南亚 | F41: DN110,PN16 | G41: 28 | H41: 只 | J41: 0
A42: 40 | B42: ▲ | C42: UPVC给水管90°弯头 | D42: 五金材料 | E42: 联塑/日丰/南亚 | F42: DN125,PN16 | G42: 19 | H42: 只 | J42: 0
A43: 41 | B43: ▲ | C43: UPVC给水管90°弯头 | D43: 五金材料 | E43: 联塑/日丰/南亚 | F43: DN140,PN16 | G43: 19 | H43: 只 | J43: 0
A44: 42 | B44: ▲ | C44: UPVC给水管90°弯头 | D44: 五金材料 | E44: 联塑/日丰/南亚 | F44: DN160,PN16 | G44: 19 | H44: 只 | J44: 0
A45: 43 | B45: ▲ | C45: UPVC给水管90°弯头 | D45: 五金材料 | E45: 联塑/日丰/南亚 | F45: DN200,PN16 | G45: 13 | H45: 只 | J45: 0
A46: 44 | B46: ▲ | C46: UPVC给水管90°弯头 | D46: 五金材料 | E46: 联塑/日丰/南亚 | F46: DN225,PN16 | G46: 10 | H46: 只 | J46: 0
A47: 45 | B47: ▲ | C47: UPVC给水管90°弯头 | D47: 五金材料 | E47: 联塑/日丰/南亚 | F47: DN250,PN16 | G47: 10 | H47: 只 | J47: 0
A48: 46 | B48: ▲ | C48: UPVC给水管45°弯头 | D48: 五金材料 | E48: 联塑/日丰/南亚 | F48: DN20,PN16 | G48: 19 | H48: 只 | J48: 0
A49: 47 | B49: ▲ | C49: UPVC给水管45°弯头 | D49: 五金材料 | E49: 联塑/日丰/南亚 | F49: DN25,PN16 | G49: 19 | H49: 只 | J49: 0
A50: 48 | B50: ▲ | C50: UPVC给水管45°弯头 | D50: 五金材料 | E50: 联塑/日丰/南亚 | F50: DN32,PN16 | G50: 19 | H50: 只 | J50: 0
A51: 49 | B51: ▲ | C51: UPVC给水管45°弯头 | D51: 五金材料 | E51: 联塑/日丰/南亚 | F51: DN40,PN16 | G51: 19 | H51: 只 | J51: 0
A52: 50 | B52: ▲ | C52: UPVC给水管45°弯头 | D52: 五金材料 | E52: 联塑/日丰/南亚 | F52: DN50,PN16 | G52: 19 | H52: 只 | J52: 0
A53: 51 | B53: ▲ | C53: UPVC给水管45°弯头 | D53: 五金材料 | E53: 联塑/日丰/南亚 | F53: DN63,PN16 | G53: 13 | H53: 只 | J53: 0
A54: 52 | B54: ▲ | C54: UPVC给水管45°弯头 | D54: 五金材料 | E54: 联塑/日丰/南亚 | F54: DN75,PN16 | G54: 13 | H54: 只 | J54: 0
A55: 53 | B55: ▲ | C55: UPVC给水管45°弯头 | D55: 五金材料 | E55: 联塑/日丰/南亚 | F55: DN90,PN16 | G55: 13 | H55: 只 | J55: 0
A56: 54 | B56: ▲ | C56: UPVC给水管45°弯头 | D56: 五金材料 | E56: 联塑/日丰/南亚 | F56: DN110,PN16 | G56: 13 | H56: 只 | J56: 0
A57: 55 | B57: ▲ | C57: UPVC给水管45°弯头 | D57: 五金材料 | E57: 联塑/日丰/南亚 | F57: DN125,PN16 | G57: 8 | H57: 只 | J57: 0
A58: 56 | B58: ▲ | C58: UPVC给水管45°弯头 | D58: 五金材料 | E58: 联塑/日丰/南亚 | F58: DN140,PN16 | G58: 8 | H58: 只 | J58: 0
A59: 57 | B59: ▲ | C59: UPVC给水管45°弯头 | D59: 五金材料 | E59: 联塑/日丰/南亚 | F59: DN160,PN16 | G59: 8 | H59: 只 | J59: 0
A60: 58 | B60: ▲ | C60: UPVC给水管45°弯头 | D60: 五金材料 | E60: 联塑/日丰/南亚 | F60: DN200,PN16 | G60: 7 | H60: 只 | J60: 0
A61: 59 | B61: ▲ | C61: UPVC给水管45°弯头 | D61: 五金材料 | E61: 联塑/日丰/南亚 | F61: DN225,PN16 | G61: 7 | H61: 只 | J61: 0
A62: 60 | B62: ▲ | C62: UPVC给水管45°弯头 | D62: 五金材料 | E62: 联塑/日丰/南亚 | F62: DN250,PN16 | G62: 7 | H62: 只 | J62: 0
A63: 61 | B63: ▲ | C63: UPVC给水管正三通 | D63: 五金材料 | E63: 联塑/日丰/南亚 | F63: DN20,PN16 | G63: 94 | H63: 只 | J63: 0
A64: 62 | B64: ▲ | C64: UPVC给水管正三通 | D64: 五金材料 | E64: 联塑/日丰/南亚 | F64: DN25,PN16 | G64: 94 | H64: 只 | J64: 0
A65: 63 | B65: ▲ | C65: UPVC给水管正三通 | D65: 五金材料 | E65: 联塑/日丰/南亚 | F65: DN32,PN16 | G65: 94 | H65: 只 | J65: 0
A66: 64 | B66: ▲ | C66: UPVC给水管正三通 | D66: 五金材料 | E66: 联塑/日丰/南亚 | F66: DN40,PN16 | G66: 94 | H66: 只 | J66: 0
A67: 65 | B67: ▲ | C67: UPVC给水管正三通 | D67: 五金材料 | E67: 联塑/日丰/南亚 | F67: DN50,PN16 | G67: 94 | H67: 只 | J67: 0
A68: 66 | B68: ▲ | C68: UPVC给水管正三通 | D68: 五金材料 | E68: 联塑/日丰/南亚 | F68: DN63,PN16 | G68: 52 | H68: 只 | J68: 0
A69: 67 | B69: ▲ | C69: UPVC给水管正三通 | D69: 五金材料 | E69: 联塑/日丰/南亚 | F69: DN75,PN16 | G69: 52 | H69: 只 | J69: 0
A70: 68 | B70: ▲ | C70: UPVC给水管正三通 | D70: 五金材料 | E70: 联塑/日丰/南亚 | F70: DN90,PN16 | G70: 34 | H70: 只 | J70: 0
A71: 69 | B71: ▲ | C71: UPVC给水管正三通 | D71: 五金材料 | E71: 联塑/日丰/南亚 | F71: DN110,PN16 | G71: 34 | H71: 只 | J71: 0
A72: 70 | B72: ▲ | C72: UPVC给水管正三通 | D72: 五金材料 | E72: 联塑/日丰/南亚 | F72: DN125,PN16 | G72: 16 | H72: 只 | J72: 0
A73: 71 | B73: ▲ | C73: UPVC给水管正三通 | D73: 五金材料 | E73: 联塑/日丰/南亚 | F73: DN140,PN16 | G73: 13 | H73: 只 | J73: 0
A74: 72 | B74: ▲ | C74: UPVC给水管正三通 | D74: 五金材料 | E74: 联塑/日丰/南亚 | F74: DN160,PN16 | G74: 13 | H74: 只 | J74: 0
A75: 73 | B75: ▲ | C75: UPVC给水管正三通 | D75: 五金材料 | E75: 联塑/日丰/南亚 | F75: DN200,PN16 | G75: 13 | H75: 只 | J75: 0
A76: 74 | B76: ▲ | C76: UPVC给水管正三通 | D76: 五金材料 | E76: 联塑/日丰/南亚 | F76: DN225,PN16 | G76: 10 | H76: 只 | J76: 0
A77: 75 | B77: ▲ | C77: UPVC给水管正三通 | D77: 五金材料 | E77: 联塑/日丰/南亚 | F77: DN250,PN16 | G77: 8 | H77: 只 | J77: 0
A78: 76 | B78: ▲ | C78: UPVC给水管异径三通 | D78: 五金材料 | E78: 联塑/日丰/南亚 | F78: DN32转DN20，PN16 | G78: 28 | H78: 只 | J78: 0
A79: 77 | B79: ▲ | C79: UPVC给水管异径三通 | D79: 五金材料 | E79: 联塑/日丰/南亚 | F79: DN40转DN20，PN16 | G79: 28 | H79: 只 | J79: 0
A80: 78 | B80: ▲ | C80: UPVC给水管异径三通 | D80: 五金材料 | E80: 联塑/日丰/南亚 | F80: DN40转DN32，PN16 | G80: 28 | H80: 只 | J80: 0
A81: 79 | B81: ▲ | C81: UPVC给水管异径三通 | D81: 五金材料 | E81: 联塑/日丰/南亚 | F81: DN50转DN40，PN16 | G81: 28 | H81: 只 | J81: 0
A82: 80 | B82: ▲ | C82: UPVC给水管异径三通 | D82: 五金材料 | E82: 联塑/日丰/南亚 | F82: DN50转DN32，PN16 | G82: 28 | H82: 只 | J82: 0
A83: 81 | B83: ▲ | C83: UPVC给水管异径三通 | D83: 五金材料 | E83: 联塑/日丰/南亚 | F83: DN63转DN50，PN16 | G83: 19 | H83: 只 | J83: 0
A84: 82 | B84: ▲ | C84: UPVC给水管异径三通 | D84: 五金材料 | E84: 联塑/日丰/南亚 | F84: DN75转DN65，PN16 | G84: 19 | H84: 只 | J84: 0
A85: 83 | B85: ▲ | C85: UPVC给水管异径三通 | D85: 五金材料 | E85: 联塑/日丰/南亚 | F85: DN90转DN75，PN16 | G85: 19 | H85: 只 | J85: 0
A86: 84 | B86: ▲ | C86: UPVC给水管异径三通 | D86: 五金材料 | E86: 联塑/日丰/南亚 | F86: DN110转DN90，PN16 | G86: 19 | H86: 只 | J86: 0
A87: 85 | B87: ▲ | C87: UPVC给水管异径接头 | D87: 五金材料 | E87: 联塑/日丰/南亚 | F87: DN32转DN20，PN16 | G87: 25 | H87: 只 | J87: 0
A88: 86 | B88: ▲ | C88: UPVC给水管异径接头 | D88: 五金材料 | E88: 联塑/日丰/南亚 | F88: DN40转DN32，PN16 | G88: 25 | H88: 只 | J88: 0
A89: 87 | B89: ▲ | C89: UPVC给水管异径接头 | D89: 五金材料 | E89: 联塑/日丰/南亚 | F89: DN50转DN40，PN16 | G89: 25 | H89: 只 | J89: 0
A90: 88 | B90: ▲ | C90: UPVC给水管异径接头 | D90: 五金材料 | E90: 联塑/日丰/南亚 | F90: DN63转DN50，PN16 | G90: 25 | H90: 只 | J90: 0
A91: 89 | B91: ▲ | C91: UPVC给水管异径接头 | D91: 五金材料 | E91: 联塑/日丰/南亚 | F91: DN75转DN63，PN16 | G91: 16 | H91: 只 | J91: 0
A92: 90 | B92: ▲ | C92: UPVC给水管异径接头 | D92: 五金材料 | E92: 联塑/日丰/南亚 | F92: DN90转DN75，PN16 | G92: 16 | H92: 只 | J92: 0
A93: 91 | B93: ▲ | C93: UPVC给水管异径接头 | D93: 五金材料 | E93: 联塑/日丰/南亚 | F93: DN110转DN90，PN16 | G93: 16 | H93: 只 | J93: 0
A94: 92 | B94: ▲ | C94: UPVC给水管异径接头 | D94: 五金材料 | E94: 联塑/日丰/南亚 | F94: DN125转DN110，PN16 | G94: 10 | H94: 只 | J94: 0
A95: 93 | B95: ▲ | C95: UPVC给水管异径接头 | D95: 五金材料 | E95: 联塑/日丰/南亚 | F95: DN140转DN125，PN16 | G95: 10 | H95: 只 | J95: 0
A96: 94 | B96: ▲ | C96: UPVC给水管异径接头 | D96: 五金材料 | E96: 联塑/日丰/南亚 | F96: DN160转DN110，PN16 | G96: 10 | H96: 只 | J96: 0
A97: 95 | B97: ▲ | C97: UPVC给水管异径接头 | D97: 五金材料 | E97: 联塑/日丰/南亚 | F97: DN200转DN160，PN16 | G97: 10 | H97: 只 | J97: 0
A98: 96 | B98: ▲ | C98: UPVC给水管异径接头 | D98: 五金材料 | E98: 联塑/日丰/南亚 | F98: DN225转DN200，PN16 | G98: 6 | H98: 只 | J98: 0
A99: 97 | B99: ▲ | C99: UPVC给水管异径接头 | D99: 五金材料 | E99: 联塑/日丰/南亚 | F99: DN250转DN225，PN16 | G99: 6 | H99: 只 | J99: 0
A100: 98 | B100: ▲ | C100: UPVC带法兰接头 | D100: 五金材料 | E100: 联塑/日丰/南亚 | F100: DN15,PN16 | G100: 14 | H100: 只 | J100: 0
A101: 99 | B101: ▲ | C101: UPVC带法兰接头 | D101: 五金材料 | E101: 联塑/日丰/南亚 | F101: DN20,PN16 | G101: 34 | H101: 只 | J101: 0
A102: 100 | B102: ▲ | C102: UPVC带法兰接头 | D102: 五金材料 | E102: 联塑/日丰/南亚 | F102: DN25,PN16 | G102: 34 | H102: 只 | J102: 0
A103: 101 | B103: ▲ | C103: UPVC带法兰接头 | D103: 五金材料 | E103: 联塑/日丰/南亚 | F103: DN32,PN16 | G103: 34 | H103: 只 | J103: 0
A104: 102 | B104: ▲ | C104: UPVC带法兰接头 | D104: 五金材料 | E104: 联塑/日丰/南亚 | F104: DN40,PN16 | G104: 34 | H104: 只 | J104: 0
A105: 103 | B105: ▲ | C105: UPVC带法兰接头 | D105: 五金材料 | E105: 联塑/日丰/南亚 | F105: DN50,PN16 | G105: 34 | H105: 只 | J105: 0
A106: 104 | B106: ▲ | C106: UPVC带法兰接头 | D106: 五金材料 | E106: 联塑/日丰/南亚 | F106: DN63,PN16 | G106: 46 | H106: 只 | J106: 0
A107: 105 | B107: ▲ | C107: UPVC带法兰接头 | D107: 五金材料 | E107: 联塑/日丰/南亚 | F107: DN75,PN16 | G107: 46 | H107: 只 | J107: 0
A108: 106 | B108: ▲ | C108: UPVC带法兰接头 | D108: 五金材料 | E108: 联塑/日丰/南亚 | F108: DN90,PN16 | G108: 46 | H108: 只 | J108: 0
A109: 107 | B109: ▲ | C109: UPVC带法兰接头 | D109: 五金材料 | E109: 联塑/日丰/南亚 | F109: DN110,PN16 | G109: 22 | H109: 只 | J109: 0
A110: 108 | B110: ▲ | C110: UPVC带法兰接头 | D110: 五金材料 | E110: 联塑/日丰/南亚 | F110: DN125,PN16 | G110: 16 | H110: 只 | J110: 0
A111: 109 | B111: ▲ | C111: UPVC带法兰接头 | D111: 五金材料 | E111: 联塑/日丰/南亚 | F111: DN140,PN16 | G111: 16 | H111: 只 | J111: 0
A112: 110 | B112: ▲ | C112: UPVC带法兰接头 | D112: 五金材料 | E112: 联塑/日丰/南亚 | F112: DN160,PN16 | G112: 22 | H112: 只 | J112: 0
A113: 111 | B113: ▲ | C113: UPVC带法兰接头 | D113: 五金材料 | E113: 联塑/日丰/南亚 | F113: DN200,PN16 | G113: 22 | H113: 只 | J113: 0
A114: 112 | B114: ▲ | C114: UPVC带法兰接头 | D114: 五金材料 | E114: 联塑/日丰/南亚 | F114: DN225,PN16 | G114: 14 | H114: 只 | J114: 0
A115: 113 | B115: ▲ | C115: UPVC带法兰接头 | D115: 五金材料 | E115: 联塑/日丰/南亚 | F115: DN250,PN16 | G115: 14 | H115: 只 | J115: 0
A116: 114 | B116: ▲ | C116: UPVC单外丝接头 | D116: 五金材料 | E116: 联塑/日丰/南亚 | F116: DN20,PN16 | G116: 34 | H116: 只 | J116: 0
A117: 115 | B117: ▲ | C117: UPVC单外丝接头 | D117: 五金材料 | E117: 联塑/日丰/南亚 | F117: DN25,PN16 | G117: 34 | H117: 只 | J117: 0
A118: 116 | B118: ▲ | C118: UPVC单外丝接头 | D118: 五金材料 | E118: 联塑/日丰/南亚 | F118: DN32,PN16 | G118: 34 | H118: 只 | J118: 0
A119: 117 | B119: ▲ | C119: UPVC单外丝接头 | D119: 五金材料 | E119: 联塑/日丰/南亚 | F119: DN40,PN16 | G119: 34 | H119: 只 | J119: 0
A120: 118 | B120: ▲ | C120: UPVC单外丝接头 | D120: 五金材料 | E120: 联塑/日丰/南亚 | F120: DN50,PN16 | G120: 34 | H120: 只 | J120: 0
A121: 119 | B121: ▲ | C121: UPVC单外丝接头 | D121: 五金材料 | E121: 联塑/日丰/南亚 | F121: DN63,PN16 | G121: 22 | H121: 只 | J121: 0
A122: 120 | B122: ▲ | C122: UPVC单外丝接头 | D122: 五金材料 | E122: 联塑/日丰/南亚 | F122: DN75,PN16 | G122: 22 | H122: 只 | J122: 0
A123: 121 | B123: ▲ | C123: UPVC单内丝接头 | D123: 五金材料 | E123: 联塑/日丰/南亚 | F123: DN20,PN16 | G123: 34 | H123: 只 | J123: 0
A124: 122 | B124: ▲ | C124: UPVC单内丝接头 | D124: 五金材料 | E124: 联塑/日丰/南亚 | F124: DN25,PN16 | G124: 34 | H124: 只 | J124: 0
A125: 123 | B125: ▲ | C125: UPVC单内丝接头 | D125: 五金材料 | E125: 联塑/日丰/南亚 | F125: DN32,PN16 | G125: 34 | H125: 只 | J125: 0
A126: 124 | B126: ▲ | C126: UPVC单内丝接头 | D126: 五金材料 | E126: 联塑/日丰/南亚 | F126: DN40,PN16 | G126: 34 | H126: 只 | J126: 0
A127: 125 | B127: ▲ | C127: UPVC单内丝接头 | D127: 五金材料 | E127: 联塑/日丰/南亚 | F127: DN50,PN16 | G127: 34 | H127: 只 | J127: 0
A128: 126 | B128: ▲ | C128: UPVC单内丝接头 | D128: 五金材料 | E128: 联塑/日丰/南亚 | F128: DN63,PN16 | G128: 22 | H128: 只 | J128: 0
A129: 127 | B129: ▲ | C129: UPVC单内丝接头 | D129: 五金材料 | E129: 联塑/日丰/南亚 | F129: DN75,PN16 | G129: 22 | H129: 只 | J129: 0
A130: 128 | B130: ▲ | C130: UPVC单外丝90°弯头 | D130: 五金材料 | E130: 联塑/日丰/南亚 | F130: DN20,PN16 | G130: 28 | H130: 只 | J130: 0
A131: 129 | B131: ▲ | C131: UPVC单外丝90°弯头 | D131: 五金材料 | E131: 联塑/日丰/南亚 | F131: DN25,PN16 | G131: 28 | H131: 只 | J131: 0
A132: 130 | B132: ▲ | C132: UPVC单外丝90°弯头 | D132: 五金材料 | E132: 联塑/日丰/南亚 | F132: DN32,PN16 | G132: 28 | H132: 只 | J132: 0
A133: 131 | B133: ▲ | C133: UPVC单外丝90°弯头 | D133: 五金材料 | E133: 联塑/日丰/南亚 | F133: DN40,PN16 | G133: 28 | H133: 只 | J133: 0
A134: 132 | B134: ▲ | C134: UPVC单外丝90°弯头 | D134: 五金材料 | E134: 联塑/日丰/南亚 | F134: DN50,PN16 | G134: 22 | H134: 只 | J134: 0
A135: 133 | B135: ▲ | C135: UPVC单外丝90°弯头 | D135: 五金材料 | E135: 联塑/日丰/南亚 | F135: DN63,PN16 | G135: 22 | H135: 只 | J135: 0
A136: 134 | B136: ▲ | C136: UPVC单外丝90°弯头 | D136: 五金材料 | E136: 联塑/日丰/南亚 | F136: DN75,PN16 | G136: 22 | H136: 只 | J136: 0
A137: 135 | B137: ▲ | C137: UPVC单内丝90°弯头 | D137: 五金材料 | E137: 联塑/日丰/南亚 | F137: DN20,PN16 | G137: 28 | H137: 只 | J137: 0
A138: 136 | B138: ▲ | C138: UPVC单内丝90°弯头 | D138: 五金材料 | E138: 联塑/日丰/南亚 | F138: DN25,PN16 | G138: 28 | H138: 只 | J138: 0
A139: 137 | B139: ▲ | C139: UPVC单内丝90°弯头 | D139: 五金材料 | E139: 联塑/日丰/南亚 | F139: DN32,PN16 | G139: 28 | H139: 只 | J139: 0
A140: 138 | B140: ▲ | C140: UPVC单内丝90°弯头 | D140: 五金材料 | E140: 联塑/日丰/南亚 | F140: DN40,PN16 | G140: 28 | H140: 只 | J140: 0
A141: 139 | B141: ▲ | C141: UPVC单内丝90°弯头 | D141: 五金材料 | E141: 联塑/日丰/南亚 | F141: DN50,PN16 | G141: 22 | H141: 只 | J141: 0
A142: 140 | B142: ▲ | C142: UPVC单内丝90°弯头 | D142: 五金材料 | E142: 联塑/日丰/南亚 | F142: DN63,PN16 | G142: 22 | H142: 只 | J142: 0
A143: 141 | B143: ▲ | C143: UPVC单内丝90°弯头 | D143: 五金材料 | E143: 联塑/日丰/南亚 | F143: DN75,PN16 | G143: 22 | H143: 只 | J143: 0
A144: 142 | B144: ▲ | C144: UPVC活接 | D144: 五金材料 | E144: 联塑/日丰/南亚 | F144: DN20,PN16 | G144: 34 | H144: 只 | J144: 0
A145: 143 | B145: ▲ | C145: UPVC活接 | D145: 五金材料 | E145: 联塑/日丰/南亚 | F145: DN25,PN16 | G145: 34 | H145: 只 | J145: 0
A146: 144 | B146: ▲ | C146: UPVC活接 | D146: 五金材料 | E146: 联塑/日丰/南亚 | F146: DN32,PN16 | G146: 34 | H146: 只 | J146: 0
A147: 145 | B147: ▲ | C147: UPVC活接 | D147: 五金材料 | E147: 联塑/日丰/南亚 | F147: DN40,PN16 | G147: 34 | H147: 只 | J147: 0
A148: 146 | B148: ▲ | C148: UPVC活接 | D148: 五金材料 | E148: 联塑/日丰/南亚 | F148: DN50,PN16 | G148: 34 | H148: 只 | J148: 0
A149: 147 | B149: ▲ | C149: UPVC活接 | D149: 五金材料 | E149: 联塑/日丰/南亚 | F149: DN63,PN16 | G149: 34 | H149: 只 | J149: 0
A150: 148 | B150: ▲ | C150: UPVC活接 | D150: 五金材料 | E150: 联塑/日丰/南亚 | F150: DN75,PN16 | G150: 34 | H150: 只 | J150: 0
A151: 149 | B151: ▲ | C151: UPVC活接 | D151: 五金材料 | E151: 联塑/日丰/南亚 | F151: DN90,PN16 | G151: 34 | H151: 只 | J151: 0
A152: 150 | B152: ▲ | C152: UPVC活接 | D152: 五金材料 | E152: 联塑/日丰/南亚 | F152: DN110,PN16 | G152: 19 | H152: 只 | J152: 0
A153: 151 | B153: ▲ | C153: UPVC活接 | D153: 五金材料 | E153: 联塑/日丰/南亚 | F153: DN125,PN16 | G153: 13 | H153: 只 | J153: 0
A154: 152 | B154: ▲ | C154: UPVC补芯 | D154: 五金材料 | E154: 联塑/日丰/南亚 | F154: DN25转DN20 | G154: 28 | H154: 只 | J154: 0
A155: 153 | B155: ▲ | C155: UPVC补芯 | D155: 五金材料 | E155: 联塑/日丰/南亚 | F155: DN32转DN25 | G155: 28 | H155: 只 | J155: 0
A156: 154 | B156: ▲ | C156: UPVC补芯 | D156: 五金材料 | E156: 联塑/日丰/南亚 | F156: DN40转DN32 | G156: 28 | H156: 只 | J156: 0
A157: 155 | B157: ▲ | C157: UPVC补芯 | D157: 五金材料 | E157: 联塑/日丰/南亚 | F157: DN50转DN40 | G157: 28 | H157: 只 | J157: 0
A158: 156 | B158: ▲ | C158: UPVC补芯 | D158: 五金材料 | E158: 联塑/日丰/南亚 | F158: DN63转DN50 | G158: 22 | H158: 只 | J158: 0
A159: 157 | B159: ▲ | C159: UPVC补芯 | D159: 五金材料 | E159: 联塑/日丰/南亚 | F159: DN75转DN63 | G159: 22 | H159: 只 | J159: 0
A160: 158 | B160: ▲ | C160: UPVC补芯 | D160: 五金材料 | E160: 联塑/日丰/南亚 | F160: DN90转DN75 | G160: 22 | H160: 只 | J160: 0
A161: 159 | B161: ▲ | C161: UPVC补芯 | D161: 五金材料 | E161: 联塑/日丰/南亚 | F161: DN110转DN90 | G161: 16 | H161: 只 | J161: 0
A162: 160 | B162: ▲ | C162: UPVC补芯 | D162: 五金材料 | E162: 联塑/日丰/南亚 | F162: DN125转DN110 | G162: 13 | H162: 只 | J162: 0
A163: 161 | B163: ▲ | C163: UPVC补芯 | D163: 五金材料 | E163: 联塑/日丰/南亚 | F163: DN140转DN125 | G163: 13 | H163: 只 | J163: 0
A164: 162 | B164: ▲ | C164: UPVC补芯 | D164: 五金材料 | E164: 联塑/日丰/南亚 | F164: DN160转DN140 | G164: 13 | H164: 只 | J164: 0
A165: 163 | B165: ▲ | C165: UPVC管帽 | D165: 五金材料 | E165: 联塑/日丰/南亚 | F165: DN20 | G165: 16 | H165: 只 | J165: 0
A166: 164 | B166: ▲ | C166: UPVC管帽 | D166: 五金材料 | E166: 联塑/日丰/南亚 | F166: DN25 | G166: 16 | H166: 只 | J166: 0
A167: 165 | B167: ▲ | C167: UPVC管帽 | D167: 五金材料 | E167: 联塑/日丰/南亚 | F167: DN32 | G167: 16 | H167: 只 | J167: 0
A168: 166 | B168: ▲ | C168: UPVC管帽 | D168: 五金材料 | E168: 联塑/日丰/南亚 | F168: DN40 | G168: 16 | H168: 只 | J168: 0
A169: 167 | B169: ▲ | C169: UPVC管帽 | D169: 五金材料 | E169: 联塑/日丰/南亚 | F169: DN50 | G169: 16 | H169: 只 | J169: 0
A170: 168 | B170: ▲ | C170: UPVC管帽 | D170: 五金材料 | E170: 联塑/日丰/南亚 | F170: DN63 | G170: 16 | H170: 只 | J170: 0
A171: 169 | B171: ▲ | C171: UPVC管帽 | D171: 五金材料 | E171: 联塑/日丰/南亚 | F171: DN75 | G171: 16 | H171: 只 | J171: 0
A172: 170 | B172: ▲ | C172: UPVC管帽 | D172: 五金材料 | E172: 联塑/日丰/南亚 | F172: DN90 | G172: 16 | H172: 只 | J172: 0
A173: 171 | B173: ▲ | C173: UPVC管帽 | D173: 五金材料 | E173: 联塑/日丰/南亚 | F173: DN110 | G173: 16 | H173: 只 | J173: 0
A174: 172 | B174: ▲ | C174: UPVC管帽 | D174: 五金材料 | E174: 联塑/日丰/南亚 | F174: DN125 | G174: 13 | H174: 只 | J174: 0
A175: 173 | B175: ▲ | C175: UPVC管帽 | D175: 五金材料 | E175: 联塑/日丰/南亚 | F175: DN140 | G175: 13 | H175: 只 | J175: 0
A176: 174 | B176: ▲ | C176: UPVC管帽 | D176: 五金材料 | E176: 联塑/日丰/南亚 | F176: DN160 | G176: 13 | H176: 只 | J176: 0
A177: 175 | B177: ▲ | C177: UPVC简单型球阀 | D177: 五金材料 | E177: 联塑/日丰/南亚 | F177: DN20,PN16 | G177: 40 | H177: 只 | J177: 0
A178: 176 | B178: ▲ | C178: UPVC简单型球阀 | D178: 五金材料 | E178: 联塑/日丰/南亚 | F178: DN25,PN16 | G178: 40 | H178: 只 | J178: 0
A179: 177 | B179: ▲ | C179: UPVC简单型球阀 | D179: 五金材料 | E179: 联塑/日丰/南亚 | F179: DN32,PN16 | G179: 40 | H179: 只 | J179: 0
A180: 178 | B180: ▲ | C180: UPVC简单型球阀 | D180: 五金材料 | E180: 联塑/日丰/南亚 | F180: DN40,PN16 | G180: 28 | H180: 只 | J180: 0
A181: 179 | B181: ▲ | C181: UPVC简单型球阀 | D181: 五金材料 | E181: 联塑/日丰/南亚 | F181: DN50,PN16 | G181: 28 | H181: 只 | J181: 0
A182: 180 | B182: ▲ | C182: UPVC简单型球阀 | D182: 五金材料 | E182: 联塑/日丰/南亚 | F182: DN63,PN16 | G182: 28 | H182: 只 | J182: 0
A183: 181 | B183: ▲ | C183: UPVC简单型球阀 | D183: 五金材料 | E183: 联塑/日丰/南亚 | F183: DN75,PN16 | G183: 12 | H183: 只 | J183: 0
A184: 182 | B184: ▲ | C184: UPVC简单型球阀 | D184: 五金材料 | E184: 联塑/日丰/南亚 | F184: DN90,PN16 | G184: 16 | H184: 只 | J184: 0
A185: 183 | B185: ▲ | C185: UPVC简单型球阀 | D185: 五金材料 | E185: 联塑/日丰/南亚 | F185: DN110,PN16 | G185: 16 | H185: 只 | J185: 0
A186: 184 | B186: ▲ | C186: UPVC简单型球阀 | D186: 五金材料 | E186: 联塑/日丰/南亚 | F186: DN125,PN16 | G186: 13 | H186: 只 | J186: 0
A187: 185 | B187: ▲ | C187: UPVC简单型球阀 | D187: 五金材料 | E187: 联塑/日丰/南亚 | F187: DN140,PN16 | G187: 13 | H187: 只 | J187: 0
A188: 186 | B188: ▲ | C188: UPVC简单型球阀 | D188: 五金材料 | E188: 联塑/日丰/南亚 | F188: DN160,PN16 | G188: 13 | H188: 只 | J188: 0
A189: 187 | B189: ▲ | C189: UPVC双由令球阀 | D189: 五金材料 | E189: 联塑/日丰/南亚 | F189: DN20,PN16 | G189: 22 | H189: 只 | J189: 0
A190: 188 | B190: ▲ | C190: UPVC双由令球阀 | D190: 五金材料 | E190: 联塑/日丰/南亚 | F190: DN25,PN16 | G190: 22 | H190: 只 | J190: 0
A191: 189 | B191: ▲ | C191: UPVC双由令球阀 | D191: 五金材料 | E191: 联塑/日丰/南亚 | F191: DN32,PN16 | G191: 22 | H191: 只 | J191: 0
A192: 190 | B192: ▲ | C192: UPVC双由令球阀 | D192: 五金材料 | E192: 联塑/日丰/南亚 | F192: DN40,PN16 | G192: 22 | H192: 只 | J192: 0
A193: 191 | B193: ▲ | C193: UPVC双由令球阀 | D193: 五金材料 | E193: 联塑/日丰/南亚 | F193: DN50,PN16 | G193: 22 | H193: 只 | J193: 0
A194: 192 | B194: ▲ | C194: UPVC双由令球阀 | D194: 五金材料 | E194: 联塑/日丰/南亚 | F194: DN63,PN16 | G194: 16 | H194: 只 | J194: 0
A195: 193 | B195: ▲ | C195: UPVC双由令球阀 | D195: 五金材料 | E195: 联塑/日丰/南亚 | F195: DN75,PN16 | G195: 16 | H195: 只 | J195: 0
A196: 194 | B196: ▲ | C196: UPVC双由令球阀 | D196: 五金材料 | E196: 联塑/日丰/南亚 | F196: DN90,PN16 | G196: 13 | H196: 只 | J196: 0
A197: 195 | B197: ▲ | C197: UPVC双由令球阀 | D197: 五金材料 | E197: 联塑/日丰/南亚 | F197: DN110,PN16 | G197: 12 | H197: 只 | J197: 0
A198: 196 | B198: ▲ | C198: 黄铜长柄球阀 | D198: 五金材料 | E198: 埃美柯/唐柯/一靓 | F198: DN15,PN16 | G198: 32 | H198: 只 | J198: 0
A199: 197 | B199: ▲ | C199: 黄铜长柄球阀 | D199: 五金材料 | E199: 埃美柯/唐柯/一靓 | F199: DN20,PN16 | G199: 32 | H199: 只 | J199: 0
A200: 198 | B200: ▲ | C200: 黄铜长柄球阀 | D200: 五金材料 | E200: 埃美柯/唐柯/一靓 | F200: DN25,PN16 | G200: 26 | H200: 只 | J200: 0
... 2321 more rows

Sheet Sheet2
I11: 20 | J11: =I11/4 -> 5
I12: 23 | J12: =I12/4 -> 5.75
I13: 40 | J13: 10
I14: 62 | J14: 15.5
I15: 96 | J15: 24
I16: 154 | J16: 38.5
I17: 218 | J17: 54.5
I18: 312 | J18: 78
I19: 462 | J19: 115.5

Sheet Sheet3
A1: 3.94 | B1: =ROUND(A1,2) -> 3.94 | C1: 3.94
A2: 5.05 | B2: =ROUND(A2,2) -> 5.05 | C2: 5.05
A3: 8.085 | B3: 8.09 | C3: 8.09
A4: 12.125 | B4: 12.13 | C4: 12.13
A5: 19.195 | B5: 19.2 | C5: 19.2
A6: 30.315 | B6: 30.32 | C6: 30.32
A7: 41.43 | B7: 41.43 | C7: 41.43
A8: 58.605 | B8: 58.61 | C8: 58.61
A9: 73.76 | B9: 73.76 | C9: 73.76
A10: 98.015 | B10: 98.02 | C10: 98.02
A11: 124.29 | B11: 124.29 | C11: 124.29
A12: 147.53 | B12: 147.53 | C12: 147.53
A13: 240.49 | B13: 240.49 | C13: 240.49
A14: 336.49 | B14: 336.49 | C14: 336.49
A15: 410.255 | B15: 410.26 | C15: 410.26
A16: 2.025 | B16: 2.03 | C16: 2.03
A17: 2.025 | B17: 2.03 | C17: 2.03
A18: 2.025 | B18: 2.03 | C18: 2.03
A19: 3.03 | B19: 3.03 | C19: 3.03
A20: 4.04 | B20: 4.04 | C20: 4.04
A21: 5.05 | B21: 5.05 | C21: 5.05
A22: 8.085 | B22: 8.09 | C22: 8.09
A23: 12.125 | B23: 12.13 | C23: 12.13
A24: 20.21 | B24: 20.21 | C24: 20.21
A25: 33.345 | B25: 33.35 | C25: 33.35
A26: 46.48 | B26: 46.48 | C26: 46.48
A27: 56.59 | B27: 56.59 | C27: 56.59
A28: 106.1 | B28: 106.1 | C28: 106.1
A29: 146.52 | B29: 146.52 | C29: 146.52
A30: 156.625 | B30: 156.63 | C30: 156.63
A31: 2.025 | B31: 2.03 | C31: 2.03
A32: 2.025 | B32: 2.03 | C32: 2.03
A33: 3.03 | B33: 3.03 | C33: 3.03
A34: 4.04 | B34: 4.04 | C34: 4.04
A35: 6.06 | B35: 6.06 | C35: 6.06
A36: 9.095 | B36: 9.1 | C36: 9.1
A37: 15.155 | B37: 15.16 | C37: 15.16
A38: 20.21 | B38: 20.21 | C38: 20.21
A39: 39.405 | B39: 39.41 | C39: 39.41
A40: 67.7 | B40: 67.7 | C40: 67.7
A41: 102.055 | B41: 102.06 | C41: 102.06
A42: 113.18 | B42: 113.18 | C42: 113.18
A43: 200.075 | B43: 200.08 | C43: 200.08
A44: 274.85 | B44: 274.85 | C44: 274.85
A45: 286.98 | B45: 286.98 | C45: 286.98
A46: 2.025 | B46: 2.03 | C46: 2.03
A47: 2.025 | B47: 2.03 | C47: 2.03
A48: 2.89 | B48: 2.89 | C48: 2.89
A49: 3.03 | B49: 3.03 | C49: 3.03
A50: 5.05 | B50: 5.05 | C50: 5.05
A51: 7.07 | B51: 7.07 | C51: 7.07
A52: 12.125 | B52: 12.13 | C52: 12.13
A53: 18.185 | B53: 18.19 | C53: 18.19
A54: 28.295 | B54: 28.3 | C54: 28.3
A55: 50.525 | B55: 50.53 | C55: 50.53
A56: 63.66 | B56: 63.66 | C56: 63.66
A57: 78.82 | B57: 78.82 | C57: 78.82
A58: 154.605 | B58: 154.61 | C58: 154.61
A59: 212.195 | B59: 212.2 | C59: 212.2
A60: 216.245 | B60: 216.25 | C60: 216.25
A61: 2.025 | B61: 2.03 | C61: 2.03
A62: 3.03 | B62: 3.03 | C62: 3.03
A63: 3.03 | B63: 3.03 | C63: 3.03
A64: 5.05 | B64: 5.05 | C64: 5.05
A65: 8.085 | B65: 8.09 | C65: 8.09
A66: 13.135 | B66: =ROUND(A66,2) -> 13.14 | C66: 13.14
A67: 19.195 | B67: 19.2 | C67: 19.2
A68: 28.295 | B68: 28.3 | C68: 28.3
A69: 49.515 | B69: 49.52 | C69: 49.52
A70: 104.08 | B70: 104.08 | C70: 104.08
A71: 113.18 | B71: 113.18 | C71: 113.18
A72: 135.405 | B72: 135.41 | C72: 135.41
A73: 244.535 | B73: 244.54 | C73: 244.54
A74: 334.47 | B74: 334.47 | C74: 334.47
A75: 450.67 | B75: 450.67 | C75: 450.67
A76: 2.21 | B76: 2.21 | C76: 2.21
A77: 3.03 | B77: 3.03 | C77: 3.03
A78: 4.04 | B78: 4.04 | C78: 4.04
A79: 4.04 | B79: 4.04 | C79: 4.04
A80: 7.07 | B80: 7.07 | C80: 7.07
A81: 6.06 | B81: 6.06 | C81: 6.06
A82: 10.11 | B82: 10.11 | C82: 10.11
A83: 17.18 | B83: 17.18 | C83: 17.18
A84: 24.25 | B84: 24.25 | C84: 24.25
A85: 41.43 | B85: 41.43 | C85: 41.43
A86: 2.025 | B86: 2.03 | C86: 2.03
A87: 2.025 | B87: 2.03 | C87: 2.03
A88: 4.04 | B88: 4.04 | C88: 4.04
A89: 6.06 | B89: 6.06 | C89: 6.06
A90: 8.085 | B90: 8.09 | C90: 8.09
A91: 12.125 | B91: 12.13 | C91: 12.13
A92: 18.185 | B92: 18.19 | C92: 18.19
A93: 41.43 | B93: 41.43 | C93: 41.43
A94: 53.55 | B94: 53.55 | C94: 53.55
A95: 54.565 | B95: 54.57 | C95: 54.57
A96: 104.08 | B96: 104.08 | C96: 104.08
A97: 181.885 | B97: 181.89 | C97: 181.89
A98: 244.535 | B98: 244.54 | C98: 244.54
A99: 12.125 | B99: 12.13 | C99: 12.13
A100: 12.125 | B100: 12.13 | C100: 12.13
A101: 15.155 | B101: 15.16 | C101: 15.16
A102: 15.155 | B102: 15.16 | C102: 15.16
A103: 20.21 | B103: 20.21 | C103: 20.21
A104: 22.23 | B104: 22.23 | C104: 22.23
A105: 28.295 | B105: 28.3 | C105: 28.3
A106: 33.345 | B106: 33.35 | C106: 33.35
A107: 43.45 | B107: 43.45 | C107: 43.45
A108: 62.65 | B108: 62.65 | C108: 62.65
A109: 79.83 | B109: 79.83 | C109: 79.83
A110: 103.07 | B110: 103.07 | C110: 103.07
A111: 136.415 | B111: 136.42 | C111: 136.42
A112: 163.7 | B112: 163.7 | C112: 163.7
A113: 244.535 | B113: 244.54 | C113: 244.54
A114: 328.405 | B114: 328.41 | C114: 328.41
A115: 2.025 | B115: 2.03 | C115: 2.03
A116: 2.83 | B116: 2.83 | C116: 2.83
A117: 2.025 | B117: 2.03 | C117: 2.03
A118: 3.03 | B118: 3.03 | C118: 3.03
A119: 4.04 | B119: 4.04 | C119: 4.04
A120: 7.07 | B120: 7.07 | C120: 7.07
A121: 11.115 | B121: 11.12 | C121: 11.12
A122: 4.04 | B122: 4.04 | C122: 4.04
A123: 6.06 | B123: 6.06 | C123: 6.06
A124: 7.07 | B124: 7.07 | C124: 7.07
A125: 5.05 | B125: 5.05 | C125: 5.05
A126: 6.06 | B126: 6.06 | C126: 6.06
A127: 8.085 | B127: 8.09 | C127: 8.09
A128: 12.125 | B128: 12.13 | C128: 12.13
A129: 6.06 | B129: 6.06 | C129: 6.06
A130: 13.135 | B130: =ROUND(A130,2) -> 13.14 | C130: 13.14
A131: 15.155 | B131: 15.16 | C131: 15.16
A132: 32.335 | B132: 32.34 | C132: 32.34
A133: 42.44 | B133: 42.44 | C133: 42.44
A134: 60.63 | B134: 60.63 | C134: 60.63
A135: 79.83 | B135: 79.83 | C135: 79.83
A136: 8.085 | B136: 8.09 | C136: 8.09
A137: 11.115 | B137: 11.12 | C137: 11.12
A138: 15.155 | B138: 15.16 | C138: 15.16
A139: 32.335 | B139: 32.34 | C139: 32.34
A140: 41.43 | B140: 41.43 | C140: 41.43
A141: 56.59 | B141: 56.59 | C141: 56.59
A142: 76.8 | B142: 76.8 | C142: 76.8
A143: 4.04 | B143: 4.04 | C143: 4.04
A144: 5.05 | B144: 5.05 | C144: 5.05
A145: 8.085 | B145: 8.09 | C145: 8.09
A146: 12.125 | B146: 12.13 | C146: 12.13
A147: 16.17 | B147: 16.17 | C147: 16.17
A148: 36.38 | B148: 36.38 | C148: 36.38
A149: 47.49 | B149: 47.49 | C149: 47.49
A150: 79.83 | B150: 79.83 | C150: 79.83
A151: 106.1 | B151: 106.1 | C151: 106.1
A152: 103.07 | B152: 103.07 | C152: 103.07
A153: 1.01 | B153: 1.01 | C153: 1.01
A154: 1.01 | B154: 1.01 | C154: 1.01
A155: 2.025 | B155: 2.03 | C155: 2.03
A156: 2.025 | B156: 2.03 | C156: 2.03
A157: 5.05 | B157: 5.05 | C157: 5.05
A158: 6.06 | B158: 6.06 | C158: 6.06
A159: 11.115 | B159: 11.12 | C159: 11.12
A160: 18.185 | B160: 18.19 | C160: 18.19
A161: 30.315 | B161: 30.32 | C161: 30.32
A162: 45.475 | B162: 45.48 | C162: 45.48
A163: 52.545 | B163: 52.55 | C163: 52.55
A164: 2.025 | B164: 2.03 | C164: 2.03
A165: 2.025 | B165: 2.03 | C165: 2.03
A166: 2.025 | B166: 2.03 | C166: 2.03
A167: 2.025 | B167: 2.03 | C167: 2.03
A168: 3.03 | B168: 3.03 | C168: 3.03
A169: 5.05 | B169: 5.05 | C169: 5.05
A170: 9.095 | B170: 9.1 | C170: 9.1
A171: 14.145 | B171: 14.15 | C171: 14.15
A172: 21.22 | B172: 21.22 | C172: 21.22
A173: 28.295 | B173: 28.3 | C173: 28.3
A174: 32.71 | B174: 32.71 | C174: 32.71
A175: 55.575 | B175: 55.58 | C175: 55.58
A176: 5.05 | B176: 5.05 | C176: 5.05
A177: 7.07 | B177: 7.07 | C177: 7.07
A178: 11.115 | B178: 11.12 | C178: 11.12
A179: 15.155 | B179: 15.16 | C179: 15.16
A180: 20.21 | B180: 20.21 | C180: 20.21
A181: 31.325 | B181: 31.33 | C181: 31.33
A182: 67.7 | B182: 67.7 | C182: 67.7
A183: 89.93 | B183: 89.93 | C183: 89.93
A184: 218.265 | B184: 218.27 | C184: 218.27
A185: 232.415 | B185: 232.42 | C185: 232.42
A186: 260.7 | B186: 260.7 | C186: 260.7
A187: 354.68 | B187: 354.68 | C187: 354.68
A188: 10.11 | B188: 10.11 | C188: 10.11
A189: 14.145 | B189: 14.15 | C189: 14.15
A190: 19.195 | B190: 19.2 | C190: 19.2
A191: 28.295 | B191: 28.3 | C191: 28.3
A192: 40.42 | B192: 40.42 | C192: 40.42
A193: 65.68 | B193: 65.68 | C193: 65.68
A194: 153.59 | B194: =ROUND(A194,2) -> 153.59 | C194: 153.59
A195: 321.335 | B195: 321.34 | C195: 321.34
A196: 550.71 | B196: 550.71 | C196: 550.71
A197: 31.325 | B197: 31.33 | C197: 31.33
A198: 40.42 | B198: 40.42 | C198: 40.42
A199: 64.675 | B199: 64.68 | C199: 64.68
A200: 99.03 | B200: 99.03 | C200: 99.03
... 3961 more rows

Sheet Sheet4
C1: 橡胶垫片 | D1: 五金材料 | E1: 任意品牌 | F1: DN32，外径68mm，内径38mm，厚度2.5mm | G1: 6 | H1: 片 | I1: 1.51 | J1: 9.06
C2: 橡胶垫片 | D2: 五金材料 | E2: 任意品牌 | F2: DN40，外径81mm，内径45mm，厚度5mm | G2: 6 | H2: 个 | I2: 2.1 | J2: 12.6
C3: 橡胶垫片 | D3: 五金材料 | E3: 任意品牌 | F3: DN50，外径95mm，内径57mm，厚度5mm | G3: 6 | H3: 个 | I3: 2.12 | J3: 12.72
C4: 橡胶垫片 | D4: 五金材料 | E4: 任意品牌 | F4: DN65，外径118mm，内径76mm，厚度5mm | G4: 6 | H4: 个 | I4: 2.16 | J4: 12.96
C5: 橡胶垫片 | D5: 五金材料 | E5: 任意品牌 | F5: DN80，外径130mm，内径89mm，厚度5mm | G5: 6 | H5: 个 | I5: 3.5 | J5: 21
C6: 橡胶垫片 | D6: 五金材料 | E6: 任意品牌 | F6: DN100，外径153mm，内径108mm，厚度5mm | G6: 6 | H6: 个 | I6: 4.21 | J6: 25.26
C7: 橡胶垫片 | D7: 五金材料 | E7: 任意品牌 | F7: DN125，外径180mm，内径133mm，厚度5mm | G7: 6 | H7: 个 | I7: 6.31 | J7: 37.86
C8: 橡胶垫片 | D8: 五金材料 | E8: 任意品牌 | F8: DN150，外径205mm，内径159mm，厚度5mm | G8: 6 | H8: 个 | I8: 6.36 | J8: 38.16
C9: 橡胶垫片 | D9: 五金材料 | E9: 任意品牌 | F9: DN200，外径268mm，内径219mm，厚度5mm | G9: 6 | H9: 个 | I9: 7.22 | J9: 43.32
C10: 橡胶垫片 | D10: 五金材料 | E10: 任意品牌 | F10: DN250，外径325mm，内径273mm，厚度5mm | G10: 6 | H10: 个 | I10: 7.8 | J10: 46.8
C11: 橡胶垫片 | D11: 五金材料 | E11: 任意品牌 | F11: DN300，外径377mm，内径325mm，厚度5mm | G11: 6 | H11: 个 | I11: 10.61 | J11: 63.66
C12: 橡胶垫片 | D12: 五金材料 | E12: 任意品牌 | F12: DN350，外径418mm，内径377mm，厚度5mm | G12: 6 | H12: 个 | I12: 19.35 | J12: 116.1
C13: 橡胶垫片 | D13: 五金材料 | E13: 任意品牌 | F13: DN400，外径485mm，内径426mm，厚度5mm | G13: 6 | H13: 个 | I13: 23.07 | J13: 138.42
C14: 橡胶垫片 | D14: 五金材料 | E14: 任意品牌 | F14: DN450，外径540mm，内径475mm，厚度5mm | G14: 6 | H14: 个 | I14: 27.45 | J14: 164.7
C15: 橡胶垫片 | D15: 五金材料 | E15: 任意品牌 | F15: DN500，外径595mm，内径530mm，厚度5mm | G15: 3 | H15: 个 | I15: 25.99 | J15: 77.97
C16: 橡胶垫片 | D16: 五金材料 | E16: 任意品牌 | F16: DN600，外径695mm，内径630mm，厚度5mm | G16: 3 | H16: 个 | I16: 28.07 | J16: 84.21
C17: 橡胶垫片 | D17: 五金材料 | E17: 任意品牌 | F17: DN700，外径800mm，内径720mm，厚度5mm | G17: 3 | H17: 个 | I17: 37.43 | J17: 112.29
C18: 橡胶垫片 | D18: 五金材料 | E18: 任意品牌 | F18: DN800，外径910mm，内径820mm，厚度5mm | G18: 3 | H18: 个 | I18: 41.58 | J18: 124.74
C19: 橡胶垫片 | D19: 五金材料 | E19: 任意品牌 | F19: DN900，外径1010mm，内径920mm，厚度5mm | G19: 3 | H19: 个 | I19: 46.78 | J19: 140.34
C20: 橡胶垫片 | D20: 五金材料 | E20: 任意品牌 | F20: DN1000，外径1120mm，内径1020mm，厚度5mm | G20: 2 | H20: 个 | I20: 55.1 | J20: 110.2
C21: 橡胶垫片 | D21: 五金材料 | E21: 任意品牌 | F21: DN1200，外径1320mm，内径1220mm，厚度5mm | G21: 2 | H21: 个 | I21: 74.85 | J21: 149.7
C22: 橡胶垫片 | D22: 五金材料 | E22: 任意品牌 | F22: DN1400，外径1520mm，内径1420mm，厚度5mm | G22: 2 | H22: 个 | I22: 108.12 | J22: 216.24
C23: 橡胶垫片 | D23: 五金材料 | E23: 任意品牌 | F23: DN1600，外径1720mm，内径1620mm，厚度5mm | G23: 2 | H23: 个 | I23: 124.75 | J23: 249.5
